{"text_format":"3","workbook":"xlsx","n_sheets":4,"sheets":["Приложение № 1","Приложение № 2","Приложение № 3","Приложение № 4"],"not_rendered":{"images":1,"defined_names":4},"read":"whole","date_system":"1900"}

{"sheet":"Приложение № 1","index":0,"n_rows":52,"n_cols":8,"rows_kept":52,"merged":[[0,0,0,7],[2,3,2,5],[6,0,7,0],[6,1,7,1],[6,2,7,2],[8,1,11,1],[8,2,11,2],[8,3,11,3],[12,0,12,7],[14,3,14,5],[16,1,31,1],[19,2,21,2],[23,2,25,2],[27,2,29,2],[32,1,34,1],[37,1,50,1],[38,2,40,2],[48,2,49,2],[48,3,49,3]]}
["Образец расчета индекса готовности к отопительному периоду муниципального образования\nжелтые ячейки - значения расчитываются автоматически, запрещено вносить изменения; \nзеленые ячейки - выбор значений 0 или 1;\nсиние ячейки - фактическое численное значение"]
["№ п/п","Обязательное требование","Подтверждающий документ","Показатель","Вес показателя","Наименование показателя","Расчет показателей готовности (рабочие формулы и ячейки для заполненния)","Примечания к расчетам показателей готовности "]
[{"$nulls":3},"ИНДЕКС ГОТОВНОСТИ",null,null,{"$f":"E4*G4+E9*G9","v":1},"Расчет осуществляется автоматически по формуле:\nИмо = Кзакон о тепл*0,65+Коценка*0,35 "]
[1,"Выполнить требования, установленные частью 3 статьи 20 Федерального закона от 27 июля 2010 г. № 190-ФЗ «О теплоснабжении» (далее – Федеральный закон о теплоснабжении) \n(подпункт 8.1 пункта 8 Правил обеспечения готовности к отопительному периоду, утвержденных приказом Минэнерго России от 13 ноября 2024 г. № 2234 \n(далее – Правила):","–","Показатель выполнения требований Федерального\nзакона о теплоснабжении",0.65,"Кзакон о тепл",{"$f":"E5*G5+E6*G6+E7*G7","v":1},"Расчет осуществляется автоматически по формуле:\nКзакон о тепл = Кпорядок*0,4+Ксхем*0,3+Кбесхоз*0,3\n\n\n\n"]
["1.1","Иметь порядок (план) действий по ликвидации последствий аварийных ситуаций в сфере теплоснабжения в муниципальном образовании\n(пункт 1 части 3 статьи 20 Федерального закона о теплоснабжении)\n\n","Утвержденный (актуализированный) порядок (план) действий по ликвидации последствий аварийных ситуаций в сфере теплоснабжения \nв муниципальном образовании (в том числе с применением электронного моделирования аварийных ситуаций)\n(подпункт 8.3.1 пункта 8 Правил)\n\n\n\n","Показатель наличия порядка (плана) действий по ликвидации последствий аварийных ситуаций в сфере теплоснабжения в муниципальном образовании",0.4,"Кпорядок\n",1,"Необходимо выбрать одно значение, в зависимости от следующих условий:\nналичие – 1;\nотсутствие – 0\n\n\n"]
["1.2","Иметь утвержденную актуализированную схему теплоснабжения в соответствии с частью 3 статьи 23 Федерального закона о теплоснабжении\n(пункт 2 части 3 статьи 20 Федерального закона о теплоснабжении)\n","Утвержденная актуализированная схема теплоснабжения, в соответствии с требованиями постановления Правительства Российской Федерации от 22 февраля 2012 г. № 154 \n(подпункт 8.3.2 пункта Правил)\n\n","Показатель наличия утвержденной актуализированной схемы теплоснабжения",0.3,"Ксхем",1,"Необходимо выбрать одно значение, в зависимости от следующих условий:\nналичие – 1;\nотсутствие – 0\n\n\n\n"]
["1.3","Обеспечить подготовку к отопительному периоду бесхозяйных объектов теплоснабжения, в отношении которых в соответствии с частью 6.4 статьи 15 Федерального закона о теплоснабжении не определена организация по содержанию и обслуживанию\n(пункт 3 части 3 статьи 20 Федерального закона о теплоснабжении)\n\n\n","Документы, предусмотренные подпунктами 9.3.1, \n9.3.3 – 9.3.12, 9.3.14 – 9.3.16, 9.3.18 – 9.3.24, 9.3.26 – 9.3.28 пункта 9 Правил, и документы, подтверждающие выполнение требований по обеспечению готовности к отопительному периоду бесхозяйных объектов теплоснабжения, в отношении которых не определена организация, которая будет осуществлять содержание и обслуживание бесхозяйного объекта теплоснабжения, в соответствии с требованиями части 61 статьи 15 Федерального закона о теплоснабжении \n(подпункт 8.3.3 пункта 8 Правил)\n\n\n\n","Показатель подготовки к отопительному периоду бесхозяйных объектов теплоснабжения",0.3,"Кбесхоз",{"$f":"IF(G8=0,G15,1)","v":1},"Значение ячейки проставляется автоматически, в зависимости от проверки наличия бесхозяйных объектов теплоснабжения.\n\n"]
[{"$nulls":3},"Проверка наличия бесхозяйных объектов теплоснабжения"," – "," – ",1,"Необходимо выбрать одно значение, в зависимости от следующих условий:\n- при отсутствии бесхозяйных объектов теплоснабжения, в отношении которых не определена организация, которая будет осуществлять содержание и обслуживание бесхозяйного объекта теплоснабжения принимается значение 1;\n- при наличии бесхозяйных объектов теплоснабжения, для которых определена организация по содержанию и обслуживанию принимается значение 1;\n- при наличии бесхозяйных объектов теплоснабжения, для которых не определена организация по содержанию и обслуживанию принимается значение 0, при этом расчет Кбесхоз ведется в соответствии с Образцом приложения к расчету индекса готовности к отопительному периоду муниципального образования в случае наличия у них бесхозяйных объектов теплоснабжения, которым не определена организация, осуществляющая их содержание и обслуживание."]
[2,"Осуществить оценку обеспечения готовности к отопительному периоду лицами, указанными в подпунктах 1.2 – 1.6 пункта 1 Правил в соответствии с Порядком проведения оценки обеспечения готовности к отопительному периоду, утвержденным приказом Минэнерго России от 13 ноября 2024 г. № 2234  (далее – Порядок)\n(подпункт 8.2 пункта 8 Правил) \n\n\n \n \n \n\n","Выданные акты оценки обеспечения готовности к отопительному периоду, подтверждающие выполнение требований, установленных подпунктом 8.2 пункта 8 \n(подпункт 8.2 пункта 8 Правил)\n \n\n\n\n \n\n\n \n\n \n","Показатель оценки обеспечения готовности к отопительному периоду лицами, указанными в подпунктах 1.2 – 1.6 пункта 1 Правил\n \n\n",0.35,"Коценка",{"$f":"(G11/G12)*G10","v":1},"Расчет осуществляется автоматически по формуле:\nКоценка=(nактов/nвсего)*lпорядок "]
["2.1",{"$nulls":3}," – ","lпорядок",1,"Необходимо выбрать одно значение, в зависимости от следующих условий:\n- при соблюдении Порядка lпорядок принимается равным 1.\n- при не соблюдении Порядка lпорядок принимается равным 0"]
["2.2",{"$nulls":3}," – ","nактов ",1,"Необходимо указать фактическое значение\nколичества теплоснабжающих и теплосетевых организаций, владельцев тепловых сетей, не являющихся теплосетевыми организациями, прошедших оценку готовности и получивших акт оценки обеспечения готовности к отопительному периоду"]
["2.3",{"$nulls":3}," – ","nвсего ",1,"Необходимо указать фактическое значение\nколичества теплоснабжающих и теплосетевых организаций, владельцев тепловых сетей, не являющихся теплосетевыми организациями, всего (информация о количестве должна соответствовать схемам теплоснабжения)\n\n"]
["Образец приложения к расчету индекса готовности к отопительному периоду муниципального образования в случае наличия у них бесхозяйных объектов теплоснабжения, которым не определена организация, осуществляющая их содержание и обслуживание\n"]
["№ п/п","Обязательное требование","Подтверждающий документ","Показатель","Вес показателя","Наименование показателя","Расчет показателей готовности (рабочие формулы и ячейки для заполненния)","Разъяснения по расчетам показателей готовности "]
[{"$nulls":3},"Кбесхоз",null,null,{"$f":"E16*G16+E52*G52","v":1},"Расчет осуществляется, если для бесхозяйных объектов не определена организация, которая будет осуществлять содержание и обслуживание.\nРасчет осуществляется автоматически по формуле:\nКбесхоз= Кзакон о тепл*0,9+Кпредп*0,1\n\n"]
["1","Выполнить требования, установленные частью 4 статьи 20 Федерального закона от 27 июля 2010 г. № 190-ФЗ «О теплоснабжении» (далее – Федеральный закон о теплоснабжении)\n(подпункт 9.1 пункта 9 Правил обеспечения готовности к отопительному периоду, утвержденных приказом Минэнерго России от 13 ноября 2024 г. № 2234 (далее – Правила):\n","–","Показатель выполнения требований Федерального закона о теплоснабжении",0.9,"Кзакон о тепл",{"$f":"E17*G17+E33*G33+E36*G36+E37*G37+E38*G38","v":1},"Расчет осуществляется автоматически по формуле:\nКзакон о тепл= Кфунк*0,05+Крежим.налад*0,01+\nКкачест*0,04+Ккач.строит*0,3+Кнадеж*0,6\n\n\n"]
["1.1","Обеспечивать функционирование эксплуатационной, диспетчерской и аварийной служб\n(пункт 1 части 4 статьи 20 Федерального закона о теплоснабжении)\n\n","Документы, предусмотренные подпунктами 9.3.1, 9.3.3 – 9.3.8 пункта 9 Правил\n","Показатель обеспечения функционирования эксплуатационной, диспетчерской и аварийной служб ",0.05,"Кфункц",{"$f":"E18*G18+E19*G19+E20*G20+E23*G23+E24*G24+E27*G27+E28*G28+E31*G31+E32*G32","v":1},"Расчет осуществляется автоматически по формуле:\nКфункц=Кшт*0,1+Кдисп*0,1+Кперечень*0,1+\nКэксп/произв.инстр*0,1+Кзнаний*0,1+\nКобуч*0,1+ Котв*0,1+Кохр.труда*0,15+Ктрен*0,15\n"]
["1.1.1",null,"Выписка из утвержденного штатного расписания, подтверждающая наличие персонала, осуществляющего функции эксплуатационной, диспетчерской и аварийной служб или договоры на техническое обслуживание, энергосервисные контракты в случае привлечения специализированных организаций для эксплуатации оборудования\n(подпункт 9.3.1 пункта 9 Правил)\n\n","Показатель наличия персонала, осуществляющего функции эксплуатационной, диспетчерской и аварийной служб или договоров на техническое обслуживание, энергосервисных контрактов ",0.1,"Кшт",1,"Необходимо выбрать одно значение, в зависимости от следующих условий:\nналичие – 1;\nотсутствие – 0\n\n\n"]
["1.1.2",null,"Утвержденное положение о диспетчерской службе или распорядительный документ организации о назначении ответственного за диспетчерское управление в соответствии с требованиями раздела 15 Правил технической эксплуатации тепловых энергоустановок, утвержденных приказом Минэнерго России от 24 марта 2003 г. № 115 (далее – Правила технической эксплуатации тепловых энергоустановок) \n(подпункт 9.3.3 пункта 9 Правил)\n","Показатель наличия положение о диспетчерской службе или распорядительный документ организации о назначении ответственного за диспетчерское управление",0.1,"Кдисп",1,"Необходимо выбрать одно значение, в зависимости от следующих условий:\nналичие – 1;\nотсутствие – 0\n\n\n"]
["1.1.3",null,"Организационно-распорядительные документы об утверждении перечня производственных инструкций для безопасной эксплуатации котлов и вспомогательного оборудования в случае эксплуатации опасных производственных объектов (далее – ОПО), разработанного в соответствии с пунктом 278 Правил промышленной безопасности при использовании оборудования, работающего под избыточным давлением, утвержденных приказом Ростехнадзора от 15 декабря 2020 г. № 536  (далее – Правила промышленной безопасности), и (или) перечня документации эксплуатирующей организации для объектов, не являющихся ОПО, разработанного в соответствии с пунктом 2.8.2 Правил технической эксплуатации тепловых энергоустановок\n(подпункт 9.3.4 пункта 9 Правил)\n \n\n","Показатель наличия перечня производственных инструкций для безопасной эксплуатации котлов и вспомогательного оборудования ",0.1,"Кперечень",{"$f":"IF(OR(G21=0,G22=0),0,E21*G21+E22*G22)","v":1},"Расчет осуществляется автоматически по формуле:\nКперечень = КпереченьОПО*0,5+ Кперечень неОПО*0,5\n\nЕсли в отношении объекта оценки какой-либо из показателей, указанных в подпунктах 1.1.3.1, 1.1.3.2 настоящего оценочного листа не применим (не подлежит оценке), то расчет показателя готовности в соответствии с настоящим пунктом осуществляется в части критерия, применимого к оценке, при этом показатель определяется по принципу: \nналичие – 1; \nотсутствие – 0.\n\n"]
["1.1.3.1",null,null,"Показатель наличия перечня производственных инструкций для безопасной эксплуатации котлов и вспомогательного оборудования в случае эксплуатации ОПО",0.5,"КпереченьОПО",1,"В случае эксплуатации ОПО необходимо выбрать одно значение в зависимости от следующих условий:\nналичие – 1;\nотсутствие – 0.\nЕсли ОПО не эксплуатируются, значение принимается равным 1.\n\n\n"]
["1.1.3.2",null,null,"Показатель наличия перечня документации эксплуатирующей организации для объектов, не являющихся ОПО",0.5,"Кперечень неОПО",1,"В случае эксплуатации объектов, не являющихся ОПО, необходимо выбрать одно значение, в зависимости от следующих условий:\nналичие – 1;\nотсутствие – 0.\nЕсли объекты, не являющиеся ОПО, не эксплуатируются, значение принимается равным 1.\nДля источников тепловой энергии, функционирующих в режиме комбинированной выработки электрической и тепловой энергии, порядок проведения оценки готовности к работе в отопительный период которых установлен Правилами оценки готовности субъектов электроэнергетики к работе в отопительный сезон, утвержденными постановлением Правительства Российской Федерации от 10.05.2017 № 543 (далее – Правила оценки готовности субъектов электроэнергетики к работе в отопительный сезон), показатель готовности принимается равным 1.\nВ случае оценки обеспечения готовности прочих источников тепловой энергии, функционирующих в режиме комбинированной выработки электрической и тепловой энергии, оценка производится в следующем порядке:\nналичие – 1;\nотсутствие – 0."]
["1.1.4",null,"Утвержденные в соответствии с требованиями пункта 2.8.4 Правил технической эксплуатации тепловых энергоустановок эксплуатационные инструкции объектов теплоснабжения и (или) производственные инструкции, разработанные в соответствии с пунктами 278, 363 и 364 Правил промышленной безопасности \n(подпункт 9.3.5 пункта 9 Правил)\n","Показатель наличия эксплуатационных инструкций объектов теплоснабжения и (или) производственных инструкций",0.1,"Кэкспл/произв.инстр",1,"Необходимо выбрать одно значение, в зависимости от следующих условий:\nналичие – 1;\nотсутствие – 0"]
["1.1.5",null,"Копии удостоверений о проверке знаний или журнала проверки знаний, протоколов проверки знаний, предусмотренных пунктами 43 – 45 Правил технической эксплуатации электроустановок потребителей электрической энергии, утвержденных приказом Минэнерго России от 12 августа 2022 г. № 811  (далее – Правила технической эксплуатации электроустановок потребителей), пунктом 2.3.23 Правил технической эксплуатации тепловых энергоустановок и (или) копии удостоверений \nо допуске к самостоятельной работе обслуживающего персонала или протоколов проверки знаний в области промышленной безопасности работников\nи руководителей, предусмотренные пунктом 238 Правил промышленной безопасности, в случае эксплуатации ОПО\n(подпункт 9.3.6 пункта 9 Правил)\n\n","Показатель наличия удостоверений проверки знаний или журнала проверки знаний, протоколов проверки знаний и (или) копии удостоверений\nо допуске к самостоятельной работе обслуживающего персонала или протоколов проверки знаний в области промышленной безопасности работников\nи руководителей \n\n",0.1,"Кзнаний",{"$f":"IF(OR(G25=0,G26=0),0,E25*G25+E26*G26)","v":1},"Расчет осуществляется автоматически по формуле:\nКзнаний = Кпров зн не ОПО*0,5+Кпров зн ОПО*0,5\n\nЕсли в соответствии с пунктом 21 Порядка в отношении объекта оценки какой-либо из показателей, указанных в подпунктах 1.1.5.1, 1.1.5.2 настоящего оценочного листа не применим (не подлежит оценке), то расчет показателя готовности в соответствии с настоящим пунктом осуществляется в части критерия, применимого к оценке, при этом показатель определяется по принципу: \nналичие – 1; \nотсутствие – 0\n"]
["1.1.5.1",null,null,"Показатель наличия удостоверений о проверке знаний или журнала проверки знаний, протоколов проверки знаний, предусмотренных Правилами технической эксплуатации электроустановок потребителей, Правилами технической эксплуатации тепловых энергоустановок ",0.5,"Кпров зн не ОПО",1,"В случае эксплуатации объектов, не являющихся ОПО, необходимо выбрать одно значение, в зависимости от следующих условий:\nналичие – 1;\nотсутствие – 0.\nЕсли объекты, не являющиеся ОПО, не эксплуатируются, значение принимается равным 1.\nДля источников тепловой энергии, функционирующих в режиме комбинированной выработки электрической и тепловой энергии, порядок проведения оценки готовности к работе в отопительный период которых установлен Правилами оценки готовности субъектов электроэнергетики к работе в отопительный сезон, утвержденными постановлением Правительства Российской Федерации от 10.05.2017 № 543 (далее – Правила оценки готовности субъектов электроэнергетики к работе в отопительный сезон), показатель готовности принимается равным 1.\nВ случае оценки обеспечения готовности прочих источников тепловой энергии, функционирующих в режиме комбинированной выработки электрической и тепловой энергии, оценка производится в следующем порядке:\nналичие – 1;\nотсутствие – 0.\n\n"]
["1.1.5.2",null,null,"Показатель наличия удостоверений о допуске к самостоятельной работе обслуживающего персонала или протоколов проверки знаний в области промышленной безопасности работников и руководителей, предусмотренных Правилами промышленной безопасности, в случае эксплуатации ОПО\n",0.5,"Кпров зн ОПО",1,"В случае эксплуатации ОПО необходимо выбрать одно значение в зависимости от следующих условий:\nналичие – 1;\nотсутствие – 0.\nЕсли ОПО не эксплуатируются, значение принимается равным 1.\n\n\n"]
["1.1.6",null,"Копии документов, подтверждающих проведение обучения работников действиям в случае аварии или инцидента на опасном производственном объекте, в соответствии со статьей 10 Федерального закона от 21 июля 1997 г. № 116-ФЗ «О промышленной безопасности опасных производственных объектов» (далее – Федеральный закон о промышленной безопасности)\n(подпункт 9.3.7 пункта 9 Правил)","Показатель наличия документов, подтверждающих проведение обучения работников действиям в случае аварии или инцидента на опасном производственном объекте",0.1,"Кобуч",1,"Необходимо выбрать одно значение, в зависимости от следующих условий:\nналичие – 1;\nотсутствие – 0.\n\nВ случае, если ОПО не эксплуатируются, то Кобуч принимается равным 1. \n\n\n\n"]
["1.1.7",null,"Организационно-распорядительные документы организации о назначении ответственных лиц за безопасную эксплуатацию тепловых энергоустановок для объектов, не отнесенных к ОПО, определенные пунктами 2.1.2, 2.1.3 Правил технической эксплуатации тепловых энергоустановок, и (или) ответственных лиц за безопасную эксплуатацию оборудования, работающего под избыточным давлением, \nи ответственных за осуществление производственного контроля при эксплуатации оборудования, отнесенного к ОПО, определенные пунктом 228 Правил промышленной безопасности\n(подпункт 9.3.8 пункта 9 Правил)\n\n\n","Показатель наличия организационно-распорядительных документов организации о назначении ответственных лиц за тепловые энергоустановки\nи (или) ответственных лиц за безопасную эксплуатацию оборудования под давлением и ответственных за осуществление производственного контроля при эксплуатации оборудования на ОПО\n\n",0.1,"Котв",{"$f":"IF(OR(G29=0,G30=0),0,E29*G29+E30*G30)","v":1},"Расчет осуществляется автоматически по формуле:\nКотв = Котв неОПО *0,5+ Котв ОПО*0,5\n\nЕсли в отношении объекта оценки какой-либо из показателей, указанных в подпунктах 1.1.7.1, 1.1.7.2 настоящего оценочного листа не применим (не подлежит оценке), то расчет показателя готовности в соответствии с настоящим пунктом осуществляется в части критерия, применимого к оценке, при этом показатель определяется по принципу: \nналичие – 1; \nотсутствие – 0.\n\n"]
["1.1.7.1",null,null,"Показатель наличия организационно-распорядительных документов организации о назначении ответственных лиц за безопасную эксплуатацию тепловых энергоустановок для объектов, не отнесенных к ОПО",0.5,"Котв неОПО",1,"В случае эксплуатации объектов, не являющихся ОПО, необходимо выбрать одно значение, в зависимости от следующих условий:\nналичие – 1;\nотсутствие – 0.\nЕсли объекты, не являющиеся ОПО, не эксплуатируются, значение принимается равным 1\nДля источников тепловой энергии, функционирующих в режиме комбинированной выработки электрической и тепловой энергии, порядок проведения оценки готовности к работе в отопительный период которых установлен Правилами оценки готовности субъектов электроэнергетики к работе в отопительный сезон, показатель готовности принимается равным 1.\nВ случае оценки обеспечения готовности прочих источников тепловой энергии, функционирующих в режиме комбинированной выработки электрической и тепловой энергии, оценка производится в следующем порядке:\nналичие – 1;\nотсутствие – 0.\n\n"]
["1.1.7.2",null,null,"Показатель наличия организационно-распорядительных документов организации о назначении ответственных лиц за безопасную эксплуатацию оборудования под давлением и ответственных за осуществление производственного контроля при эксплуатации оборудования на ОПО",0.5,"Котв ОПО",1,"В случае эксплуатации ОПО необходимо выбрать одно значение в зависимости от следующих условий:\nналичие – 1;\nотсутствие – 0.\nЕсли ОПО не эксплуатируются, значение принимается равным 1.\n\n\n\n"]
["1.1.8",null,"Утвержденные инструкции по охране труда, утвержденный порядок производства работ повышенной опасности и оформления наряда-допуска, утвержденный перечень работ, выполняемых по нарядам-допускам в соответствии с требованиями Правил по охране труда при эксплуатации объектов теплоснабжения и теплопотребляющих установок, утвержденных приказом Минтруда России от 17 декабря 2020 г. № 924н  \n(подпункт 9.3.9 пункта 9 Правил)\n\n","Показатель наличия утвержденных инструкций по охране труда, утвержденных порядков производства работ повышенной опасности и оформлений нарядов-допусков, утвержденного перечня работ, выполняемых по нарядам-допускам ",0.15,"Кохр.труда",1,"Необходимо выбрать одно значение, в зависимости от следующих условий:\nналичие – 1;\nотсутствие – 0\n\n\n"]
["1.1.9",null,"Копии утвержденных в соответствии с пунктом 2.3.48 Правил технической эксплуатации тепловых энергоустановок и с пунктом 236 Правил промышленной безопасности, программ противоаварийных тренировок, журналов, подтверждающих проведение тренировок согласно утвержденной программе противоаварийных тренировок\n(подпункт 9.3.10 пункта 9 Правил)\n\n","Показатель наличия программ противоаварийных тренировок, журналов, подтверждающих проведение тренировок согласно утвержденной программе противоаварийных тренировок",0.15,"Ктрен",1,"Необходимо выбрать одно значение, в зависимости от следующих условий:\nналичие – 1;\nотсутствие – 0\n\n\n\n"]
["1.2","Проводить наладку принадлежащих им тепловых сетей (пункт 2 части 4 статьи 20 Федерального закона о теплоснабжении) \nи осуществлять контроль за режимами потребления тепловой энергии (пункт 3 части 4 статьи 20 Федерального закона о теплоснабжении)\n","Документы, предусмотренные подпунктами 9.3.11 и 9.3.22 пункта 9 Правил","Показатель проведения наладки тепловых сетей и контроля за режимами потребления тепловой энергии",0.01,"Крежим.налад",{"$f":"E34*G34+E35*G35","v":1},"Расчет осуществляется автоматически по формуле:\nКрежим.налад=Ктемп.граф*0,5+Крежим.карт*0,5\n"]
["1.2.1",null,"Разработанные\nи утвержденные в установленном порядке температурные графики, гидравлические режимы работы системы теплоснабжения на предстоящий отопительный период, разработанные в соответствии с пунктом 6.2.1 Правил технической эксплуатации тепловых энергоустановок, а также копии эксплуатационных инструкций по ведению и контролю режимов работы системы теплоснабжения (подпункт 9.3.11 пункта 9 Правил)","Показатель наличия температурных графиков, гидравлических режимов работы системы теплоснабжения ",0.5,"Ктемп.граф",1,"Необходимо выбрать одно значение, в зависимости от следующих условий:\nналичие – 1;\nотсутствие – 0\n\n\n"]
["1.2.2",null,"Технические отчеты о проведении режимно-наладочных испытаний объектов теплоснабжения, утвержденные режимные карты, требования к которым установлены пунктами 2.5.4, 2.8.1, 5.3.6, 9.3.25, 12.11 Правил технической эксплуатации тепловых энергоустановок\n(пункт 9.3.22 пункта 9 Правил)\n\n","Показатель наличия технических отчетов о проведении режимно-наладочных испытаний объектов теплоснабжения, утвержденных режимных карт ",0.5,"Крежим.карт",1,"Необходимо выбрать одно значение, в зависимости от следующих условий:\nналичие – 1;\nотсутствие – 0\n"]
["1.3","Обеспечивать качество теплоносителей (пункт 4 части 4 статьи 20 Федерального закона о теплоснабжении)","Копии утвержденной инструкции по эксплуатации установок для докотловой обработки воды (если предусмотрены проектной документацией объектов теплоснабжения) и инструкции по ведению водно-химического режима, включающей режимные карты, утвержденный график химконтроля за водно-химическим режимом котельных и тепловых сетей, разработанный в соответствии с требованиями пункта 12.9 Правил технической эксплуатации тепловых энергоустановок, пункта 278 Правил промышленной безопасности \n(подпункт 9.3.12 пункта 9 Правил)\n\n\n","Показатель обеспечения качества теплоносителей",0.04,"Ккачест",1,"Необходимо выбрать одно значение, в зависимости от следующих условий:\nналичие – 1;\nотсутствие – 0\n"]
["1.4","Обеспечивать проверку качества строительства, реконструкции и (или) модернизации принадлежащих теплоснабжающим, теплосетевым организациям тепловых сетей, в том числе качества тепловой изоляции (пункт 6 части 4 статьи 20 Федерального закона о теплоснабжении)","Разработанный в соответствии с пунктом 2.7.10 Правил технической эксплуатации тепловых энергоустановок нормативно-технический документ об организации ремонтного производства, разработке ремонтной документации, планированию и подготовке к ремонту, выводу в ремонт и производству ремонта, а также приемке и оценке качества ремонта, а также акты приемки объектов теплоснабжения и теплопотребляющих установок из ремонта с приложением дефектных ведомостей (при наличии), протоколов испытаний и наладки, предусмотренные пунктом 2.7.13 Правил технической эксплуатации тепловых энергоустановок – в случае эксплуатации объектов, не являющихся ОПО, и (или) копии удостоверений (свидетельств) о качестве монтажа в случае выполнения мероприятий по строительству, реконструкции и (или) модернизации тепловых сетей – в случае эксплуатации ОПО.\n(подпункт 9.3.14 пункта 9 Правил)\n\n\n\n","Показатель наличия нормативно-технического документа по организации ремонтного производства, разработке ремонтной документации, планированию и подготовке к ремонту, выводу в ремонт и производству ремонта, а также приемке и оценке качества ремонта",0.3,"Ккач.строит",1,"Необходимо выбрать одно значение, в зависимости от следующих условий:\nналичие – 1;\nотсутствие – 0.\n\nЗначение Кбесхоз не может быть более 0,8 в случае, если данный показатель равен 0.\n\n"]
["1.5","Обеспечивать надежное теплоснабжение потребителей (пункт 7 части 4 статьи 20 Федерального закона о теплоснабжении)","Документы, предусмотренные подпунктами 9.3.15, 9.3.16, 9.3.18 – 9.3.24, 9.3.26, 9.3.27 пункта 9 Правил","Показатель обеспечения надежного теплоснабжения потребителей",0.6,"Кнадеж",{"$f":"E39*G39+E42*G42+E43*G43+E44*G44+E45*G45+E46*G46+E47*G47+E48*G48+E49*G49+E51*G51","v":1},"Расчет осуществляется автоматически по формуле:\nКнадеж=Косвид*0,01+Кобслед*0,05+Киспыт*0,05+\nКгидр*0,4+Кшурф*0,02+Кочист.промыв*0,4+\nКэлектр.сопр*0,01+Кнасос стан*0,01+ Кматер*0,04+Кстрах*0,01"]
["1.5.1",null,"Копии паспортов паровых и (или) водогрейных котельных установок, центральных тепловых пунктов и оборудования, работающего под избыточным давлением, с отметками:\nо проведении технических освидетельствований, актов о проведении гидравлических испытаний с выводами об отсутствии выявленных дефектов, запрещающих эксплуатацию. Для оборудования, отработавшего установленный\nв технической документации организации–изготовителя или проектной документации срок службы, или при превышении количества циклов его нагрузки – сведения о зарегистрированных федеральным органом исполнительной власти\nв области промышленной безопасности заключениях экспертизы промышленной безопасности (для ОПО) в соответствии с частью 2 статьи 7 Федерального закона о промышленной безопасности и заключениях о проведении технического диагностирования (для объектов, не являющихся ОПО) с выводами о продлении срока эксплуатации оборудования в соответствии с пунктом 13.2 Правил технической эксплуатации тепловых энергоустановок; о проверке плотности (герметичности), настройки и регулировки предохранительных клапанов\n(подпункт 9.3.15 пункта 9 Правил)\n\n","Показатель наличия паспортов паровых и (или) водогрейных котельных установок, центральных тепловых пунктов\nи оборудования, работающего под избыточным давлением с выводами о продлении срока эксплуатации\n",0.01,"Косвид",{"$f":"IF(OR(G40=0,G41=0),0,E40*G40+E41*G41)","v":1},"Расчет осуществляется автоматически по формуле:\nКосвид= Косвид не ОПО *0,5+ Косвид ОПО*0,5\n\nЕсли в отношении объекта оценки какой-либо из показателей, указанных в подпунктах 1.5.1.1, 1.5.1.2 настоящего оценочного листа не применим (не подлежит оценке), то расчет показателя готовности в соответствии с настоящим пунктом осуществляется в части критерия, применимого к оценке, при этом показатель определяется по принципу: \nналичие – 1; \nотсутствие – 0.\n\n"]
["1.5.1.1",null,null,"Показатель наличия отметок в паспорте оборудования, не являющегося ОПО, о проведенном техническом освидетельствовании, гидравлическом испытании, техническом диагностировании, настройки предохранительных клапанов с выводами о продлении срока эксплуатации оборудования",0.5,"Косвид не ОПО",1,"В случае эксплуатации объектов, не являющихся ОПО, необходимо выбрать одно значение, в зависимости от следующих условий:\nналичие – 1;\nотсутствие – 0.\nЕсли объекты, не являющиеся ОПО, не эксплуатируются, значение принимается равным 1.\n\nДля источников тепловой энергии, функционирующих в режиме комбинированной выработки электрической и тепловой энергии, порядок проведения оценки готовности к работе в отопительный период которых установлен Правилами оценки готовности субъектов электроэнергетики к работе в отопительный сезон, показатель готовности принимается равным 1.\nВ случае оценки обеспечения готовности прочих источников тепловой энергии, функционирующих в режиме комбинированной выработки электрической и тепловой энергии, оценка производится в следующем порядке:\nналичие – 1;\nотсутствие – 0. \n"]
["1.5.1.2",null,null,"Показатель наличия отметок в паспорте оборудования о проведенных техническом освидетельствовании, гидравлическом испытании, экспертизы промышленной безопасности, настройки и регулировки предохранительных клапанов с выводами о продлении срока эксплуатации оборудования",0.5,"Косвид ОПО",1,"В случае эксплуатации ОПО необходимо выбрать одно значение в зависимости от следующих условий:\nналичие – 1;\nотсутствие – 0.\nЕсли ОПО не эксплуатируются, значение принимается равным 1.\n\n\n"]
["1.5.2",null,"Копии актов комплексного обследования, очередных и внеочередных осмотров зданий и сооружений объектов теплоснабжения, журналов, паспортов зданий и сооружений, определенных перечнем документации эксплуатирующей организации, в которые занесены результаты текущих осмотров в соответствии с пунктом 3.1.3 Правил технической эксплуатации тепловых энергоустановок \n(подпункт 9.3.16 пункта 9 Правил)","Показатель наличия актов комплексного обследования, очередных и внеочередных осмотров зданий и сооружений объектов теплоснабжения, журналов, паспортов зданий и сооружений, определенных перечнем документации эксплуатирующей организации, в которые занесены результаты текущих осмотров",0.05,"Кобслед",1,"Необходимо выбрать одно значение, в зависимости от следующих условий:\nналичие – 1;\nотсутствие – 0\n\n"]
["1.5.3",null,"Акты (технические отчеты) о проведении испытаний тепловых сетей\n(в соответствии с графиком проведения испытаний, утвержденным руководителем (техническим руководителем) организации) на максимальную температуру,\nо проведении испытаний по определению тепловых потерь через тепловую изоляцию, о проведении испытания по определению гидравлических потерь трубопроводов водяных тепловых сетей в сроки, установленные пунктом 6.2.32 Правил технической эксплуатации тепловых энергоустановок \n(подпункт 9.3.18 пункта 9 Правил)\n","Показатель наличия актов (технических отчетов) о проведении испытаний тепловых сетей (в соответствии \nс графиком проведения испытаний, утвержденным руководителем (техническим руководителем) организации) на максимальную температуру, о проведении испытаний по определению тепловых потерь через тепловую изоляцию, о проведении испытания по определению гидравлических потерь трубопроводов водяных тепловых сетей\n",0.05,"Киспыт",1,"Необходимо выбрать одно значение, в зависимости от следующих условий:\nналичие – 1;\nотсутствие – 0.\n\nВ случае, если тепловые сети не эксплуатируются Киспыт принимается равным 1.\n"]
["1.5.4",null,"Акты проведения гидравлических испытаний на прочность и плотность трубопроводов тепловых сетей в соответствии с пунктом 6.2.16 Правил технической эксплуатации тепловых энергоустановок \n(подпункт 9.3.19 пункта 9 Правил)\n\n","Показатель наличия актов проведения гидравлических испытаний на прочность и плотность трубопроводов тепловых сетей ",0.4,"Кгидр",1,"Необходимо выбрать одно значение, в зависимости от следующих условий:\nналичие – 1;\nотсутствие – 0.\n\nВ случае, если бесхозяйные тепловые сети отсутствуют, Кгидр принимается равным 1.\n\nЗначение Кбесхоз не может быть более 0,8 в случае, если данный показатель равен 0.\n\n"]
["1.5.5",null,"Документы, подтверждающие проведение мероприятий по контролю\nза состоянием подземных трубопроводов тепловой сети (за исключением неметаллических), проложенных в непроходных каналах, и при бесканальной прокладке, требования к проведению которых установлены пунктами 6.2.34 – 6.2.37 Правил технической эксплуатации тепловых энергоустановок (подпункт 9.3.20 пункта 9 Правил)","Показатель наличия документов, подтверждающих проведение мероприятий по контролю\nза состоянием подземных трубопроводов тепловой сети (за исключением неметаллических), проложенных в непроходных каналах, и при бесканальной прокладке\n",0.02,"Кшурф",1,"Необходимо выбрать одно значение, в зависимости от следующих условий:\nналичие – 1;\nотсутствие – 0.\n\nВ случае, если бесхозяйные тепловые сети отсутствуют, Кшурф принимается равным 1\n\n"]
["1.5.6",null,"Акты о проведении очистки и промывки тепловых сетей, тепловых пунктов, требования к которым установлены пунктами 5.3.37, 6.2.17, 12.18 Правил технической эксплуатации тепловых энергоустановок. (подпункт 9.3.21 пункта 9 Правил)\n","Показатель наличия актов о проведении очистки и тепловых сетей, тепловых пунктов ",0.4,"Кочист.промыв",1,"Необходимо выбрать одно значение, в зависимости от следующих условий:\nналичие – 1;\nотсутствие – 0.\n\nЗначение Кбесхоз не может быть более 0,8 в случае, если данный показатель равен 0."]
["1.5.7",null,"Акт измерений удельного электрического сопротивления грунта и потенциалов блуждающих токов в соответствии с требованиями пункта 6.2.43 Правил технической эксплуатации тепловых энергоустановок (подпункт 9.3.23 Пункта 9 Правил)\n","Показатель наличия актов измерений удельного электрического сопротивления грунта и потенциалов блуждающих токов",0.01,"Кэлектр.сопр",1,"Необходимо выбрать одно значение, в зависимости от следующих условий:\nналичие – 1;\nотсутствие – 0.\n\nВ случае, если бесхозяйные тепловые сети отсутствуют, Кэлектр.сопр принимается равным 1\n\n"]
["1.5.8",null,"Акт опробования работоспособности оборудования насосных станций, проведение которого установлено требованиями пункта 6.2.48 Правил технической эксплуатации тепловых энергоустановок (подпункт 9.3.24 Пункта 9 Правил)\n","Показатель наличия акта опробования работоспособности оборудования насосных станций",0.01,"Кнасос.стан",1,"Необходимо выбрать одно значение, в зависимости от следующих условий:\nналичие – 1;\nотсутствие – 0\n\n\n"]
["1.5.9",null,"Утвержденный в соответствии с требованиями пункта 2.7.3 Правил технической эксплуатации тепловых энергоустановок перечень запасов материалов, запорной арматуры, запасных частей, средств механизации для выполнения срочных внеплановых (аварийных) ремонтных работ, результаты последней проведенной инвентаризации запасов материалов, запорной арматуры, запасных частей, средств механизации для выполнения срочных внеплановых (аварийных) ремонтных работ, оформленные в соответствии с требованиями Положения по ведению бухгалтерского учета и бухгалтерской отчетности в Российской Федерации, утвержденного приказом Минфина России от 29 июля 1998 г. № 34н  (подпункт 9.3.26 Пункта 9 Правил)\n","Показатель наличия запасов материалов, запорной арматуры, запасных частей, средств механизации\n \n",0.04,"Кматер",{"$f":"G50/100","v":1},"Расчет осуществляется автоматически по формуле:\nКматер=% наличия запас мат факт по инвентар/100"]
["1.5.9.1",{"$nulls":3},"–","% наличия запас мат факт по инвентар",100,"Фактическое значение наличия материальных запасов по инвентаризации, выраженное в процентах от необходимого."]
["1.5.10",null,"В соответствии с требованиями части 1 статьи 9 Федерального закона о промышленной безопасности копия лицензии или выписки из реестра лицензий Ростехнадзора, копия договора обязательного страхования гражданской ответственности, заключенного в соответствии с законодательством Российской Федерации об обязательном страховании гражданской ответственности владельца опасного объекта за причинение вреда в результате аварии на опасном объекте. Требование не распространяется на объекты теплоснабжения организаций, подведомственных федеральным органам исполнительной власти в сфере обороны, обеспечения безопасности, государственной охраны, внешней разведки, мобилизационной подготовки и мобилизации\n(подпункт 9.3.27 пункта 9 Правил)","Показатель наличия лицензии Ростехнадзора и договора обязательного страхования гражданской ответственности",0.01,"Кстрах",1,"Необходимо выбрать одно значение, в зависимости от следующих условий:\nналичие – 1;\nотсутствие – 0.\n\nВ случае эксплуатации только объектов, не являющиеся ОПО, значение принимается равным 1.\n"]
["2","Обеспечить выполнение в установленные сроки предписаний, влияющих на надежность работы в отопительный период, выданных федеральным органом исполнительной власти государственного энергетического надзора, федерального государственного надзора в области промышленной безопасности, федеральными органами исполнительной власти в сфере обороны, обеспечения безопасности, государственной охраны, внешней разведки, мобилизационной подготовки и мобилизации, исполнения наказаний (их подразделениями) (в случаях, предусмотренных пунктом 2 части 1 статьи 41 Федерального закона о теплоснабжении и абзацем вторым пункта 2 статьи 5 Федерального закона о промышленной безопасности, об устранении нарушений требований пунктов 2.3.14, 2.3.15, 2.8.1, \n3.3.4 – 3.3.8, 4.1.1, 5.3.6, 5.3.26, 5.3.31, 5.3.32, 5.3.52, 6.2.16, 6.2.26, 6.2.32, 6.2.48, 6.2.52, 6.2.60, 6.2.62, 8.2.1 – 8.2.5, 8.2.12, 8.2.13, 10.1.9, 11.1, 11.2, 11.5, 15.1.5 – 15.1.7 Правил технической эксплуатации тепловых энергоустановок и пунктов 394, 396 – 399, 403 Правил промышленной безопасности\n(подпункт 9.2 пункта 9 Правил)\n\n","Справка об отсутствии невыполненных в установленные сроки предписаний об устранении нарушений требований пунктов 2.3.14, 2.3.15, 2.8.1, 3.3.4 – 3.3.8, 4.1.1, 5.3.6, 5.3.26, 5.3.31, 5.3.32, 5.3.52, 6.2.16, 6.2.26, 6.2.32, 6.2.48, 6.2.52, 6.2.60, 6.2.62, 8.2.1 – 8.2.5, 8.2.12, 8.2.13, 10.1.9, 11.1, 11.2, 11.5, 15.1.5 – 15.1.7  Правил технической эксплуатации тепловых энергоустановок и пунктов 394, 396 – 399, 403 Правил промышленной безопасности при использовании оборудования, работающего под избыточным давлением, влияющих на надежность работы в отопительный период, выданных федеральным органом исполнительной власти государственного энергетического надзора, федерального государственного надзора в области промышленной безопасности, федеральными органами исполнительной власти в сфере обороны, обеспечения безопасности, государственной охраны, внешней разведки, мобилизационной подготовки и мобилизации, исполнения наказаний (их подразделениями) (в случаях, предусмотренных пунктом 2 части 1 статьи 4.1 Федерального закона о теплоснабжении и абзацем вторым пункта 2 статьи 5 Федерального закона о промышленной безопасности) \n(подпункт 9.2 пункта 9 Правил)\n","Показатель выполнения предписаний, влияющих на надежность работы в отопительный период",0.1,"Кпредп",1,"Необходимо выбрать одно значение, в зависимости от следующих условий:\nналичие – 1;\nотсутствие – 0\n"]

{"sheet":"Приложение № 2","index":1,"n_rows":53,"n_cols":8,"rows_kept":53,"merged":[[0,0,0,7],[2,3,2,5],[4,1,22,1],[6,2,8,2],[10,2,12,2],[14,2,16,2],[18,2,20,2],[23,1,25,1],[29,1,48,1],[30,2,32,2],[41,2,45,2],[46,2,47,2],[46,3,47,3]]}
["Образец расчета индекса готовности к отопительному периоду теплоснабжающих, теплосетевых организаций\nжелтые ячейки - значения расчитываются автоматически, запрещено вносить изменения; \nзеленые ячейки - выбор значений 0 или 1;\nсиние ячейки - фактическое численное значение"]
["№ п/п","Обязательное требование","Подтверждающий документ","Показатель","Вес показателя","Наименование показателя","Расчет показателей готовности (рабочие формулы и ячейки для заполненния)","Примечания к расчетам показателей готовности "]
[{"$nulls":3},"ИНДЕКС ГОТОВНОСТИ",null,null,{"$f":"E4*G4+E52*G52+E53*G53","v":1},"Расчет осуществляется автоматически по формуле:\nИтсо= Кзакон о тепл*0,9+Кпредп*0,05+Кплан*0,05"]
["1","Выполнить требования, установленные частью 4 статьи 20 Федерального закона от 27 июля 2010 г. № 190-ФЗ «О теплоснабжении» (далее – Федеральный закон о теплоснабжении)\n(подпункт 9.1 пункта 9 Правил обеспечения готовности к отопительному периоду, утвержденных приказом Минэнерго России от 13 ноября 2024 г. № 2234 \n(далее – Правила):","–","Показатель выполнения требований Федерального \nзакона о теплоснабжении",0.9,"Кзакон о тепл",{"$f":"E5*G5+E24*G24+E27*G27+E28*G28+E29*G29+E30*G30+E50*G50+E51*G51","v":1},"Расчет осуществляется автоматически по формуле:\nКзакон о тепл = Кфунк*0,05+Крежим.налад*0,01+Ккачест*0,01+\nКкомм.учет*0,01+Ккач.строит*0,25+\nКнадеж*0,65+Крезерв*0,01+Кпорядок*0,01"]
["1.1","Обеспечивать функционирование эксплуатационной, диспетчерской и аварийной служб \n(пункт 1 части 4 статьи 20 Федерального закона о теплоснабжении)","Документы, предусмотренные подпунктами 9.3.1 – 9.3.8 пункта 9 Правил","Показатель обеспечения функционирования эксплуатационной, диспетчерской \nи аварийной служб",0.05,"Кфункц",{"$f":"E6*G6+E7*G7+E10*G10+E11*G11+E14*G14+E15*G15+E18*G18+E19*G19+E22*G22+E23*G23","v":0.9999999999999999},"Расчет осуществляется автоматически по формуле:\nКфункц=Кшт*0,1+Ксогл*0,1+Кдисп*0,1+Кперечень*0,1+\nКэксп/произв.инстр*0,1+Кзнаний*0,1+Кобуч*0,1+Котв*0,1+\nКохр.труда*0,1+Ктрен*0,1\n"]
["1.1.1",null,"Выписка из утвержденного штатного расписания, подтверждающая наличие персонала, осуществляющего функции эксплуатационной, диспетчерской и аварийной служб или договоры на техническое обслуживание, энергосервисные контракты в случае привлечения специализированных организаций для эксплуатации оборудования\n(подпункт 9.3.1 пункта 9 Правил)\n","Показатель наличия персонала, осуществляющего функции эксплуатационной, диспетчерской и аварийной служб или договоров на техническое обслуживание, энергосервисных контрактов",0.1,"Кшт",1,"Необходимо выбрать одно значение, в зависимости от следующих условий:\nналичие – 1;\nотсутствие – 0\n\nДля источников тепловой энергии, функционирующих в режиме комбинированной выработки электрической и тепловой энергии, порядок проведения оценки готовности к работе в отопительный период которых установлен Правилами оценки готовности субъектов электроэнергетики к работе в отопительный сезон, утвержденными постановлением Правительства Российской Федерации от 10 мая 2017 г. № 543 (далее – Правила оценки готовности субъектов электроэнергетики к работе в отопительный сезон), показатель готовности принимается равным 1.\nВ случае оценки обеспечения готовности прочих источников тепловой энергии, функционирующих в режиме комбинированной выработки электрической и тепловой энергии, оценка производится в следующем порядке:\nналичие – 1;\nотсутствие – 0. \n\n"]
["1.1.2",null,"Копия заключенного соглашения об управлении системой теплоснабжения, в соответствии с требованиями Правил организации теплоснабжения в Российской Федерации, утвержденных постановлением Правительства Российской Федерации от 08 августа 2012 г. № 808 (далее – Правила организации теплоснабжения в Российской Федерации) \n(подпункт 9.3.2 пункта 9 Правил)\n","Показатель наличия соглашения об управлении системой теплоснабжения",0.1,"Ксогл",{"$f":"G8/G9","v":1},"Расчет осуществляется автоматически по формуле:\nКсогл=Nсогл/Nвсего РСО в системе т/сн\nДля единой теплоснабжающей организации (далее – ЕТО) применяется вышеуказанная формула, при этом если в системе теплоснабжения отсутствуют другие теплоснабжающие организации, то соглашение ЕТО не заключается и показатель для нее равен 1, иначе указанные ЕТО оцениваются в общем порядке по принципу: \nналичие – 1\nотсутствие – 0.\n"]
["1.1.2.1",null,null,"Количество заключенных соглашений об управлении системой теплоснабжения","–","Nсогл",1,"Фактическое значение, равное количествусоглашений об управлении системой теплоснабжения"]
["1.1.2.2",null,null,"Количество организаций всего в системе теплоснабжения","–","Nвсего РСО в системе т/сн",1,"Фактическое значение, равное количеству организаций всего в системе теплоснабжения"]
["1.1.3",null,"Утвержденное положение о диспетчерской службе или распорядительный документ организации о назначении ответственного за диспетчерское управление в соответствии с требованиями раздела 15 Правил технической эксплуатации тепловых энергоустановок, утвержденных приказом Минэнерго России от 24 марта 2003 г. № 115 (далее – Правила технической эксплуатации тепловых энергоустановок) \n(подпункт 9.3.3 пункта 9 Правил)\n\n\n","Показатель наличия положение о диспетчерской службе или распорядительный документ организации о назначении ответственного за диспетчерское управление",0.1,"Кдисп",1,"Необходимо выбрать одно значение, в зависимости от следующих условий:\nналичие – 1;\nотсутствие – 0\n\n"]
["1.1.4",null,"Организационно-распорядительные документы об утверждении перечня производственных инструкций для безопасной эксплуатации котлов и вспомогательного оборудования в случае эксплуатации опасных производственных объектов (далее – ОПО), разработанного в соответствии с пунктом 278 Правил промышленной безопасности при использовании оборудования, работающего под избыточным давлением, утвержденных приказом Ростехнадзора от 15 декабря 2020 г. № 536  (далее – Правила промышленной безопасности), и (или) перечня документации эксплуатирующей организации для объектов, не являющихся ОПО, разработанного в соответствии с пунктом 2.8.2 Правил технической эксплуатации тепловых энергоустановок\n(подпункт 9.3.4 пункта 9 Правил)\n \n\n","Показатель наличия перечня производственных инструкций для безопасной эксплуатации котлов и вспомогательного оборудования \n",0.1,"Кперечень",{"$f":"IF(OR(G12=0,G13=0),0,E12*G12+E13*G13)","v":1},"Расчет осуществляется автоматически по формуле:\nКперечень= КпереченьОПО*0,5+ Кперечень неОПО*0,5\n\nЕсли в отношении объекта оценки какой-либо из показателей, указанных в подпунктах 1.1.4.1, 1.1.4.2 настоящего оценочного листа не применим (не подлежит оценке), то расчет показателя готовности в соответствии с настоящим пунктом осуществляется в части критерия, применимого к оценке, при этом показатель определяется по принципу: \nналичие – 1; \nотсутствие – 0. \n\n"]
["1.1.4.1",null,null,"Показатель наличия перечня производственных инструкций для безопасной эксплуатации котлов и вспомогательного оборудования в случае эксплуатации ОПО",0.5,"КпереченьОПО",1,"В случае эксплуатации ОПО необходимо выбрать одно значение в зависимости от следующих условий:\nналичие – 1;\nотсутствие – 0.\nЕсли ОПО не эксплуатируются, значение принимается равным 1.\n\n\n\n"]
["1.1.4.2",null,null,"Показатель наличия перечня документации эксплуатирующей организации для объектов, не являющихся ОПО ",0.5,"Кперечень неОПО",1,"В случае эксплуатации объектов, не являющихся ОПО, необходимо выбрать одно значение, в зависимости от следующих условий:\nналичие – 1;\nотсутствие – 0.\nЕсли объекты, не являющиеся ОПО, не эксплуатируются, значение принимается равным 1.\nДля источников тепловой энергии, функционирующих в режиме комбинированной выработки электрической и тепловой энергии, порядок проведения оценки готовности к работе в отопительный период которых установлен Правилами оценки готовности субъектов электроэнергетики к работе в отопительный сезон, утвержденными постановлением Правительства Российской Федерации от 10.05.2017 № 543 (далее – Правила оценки готовности субъектов электроэнергетики к работе в отопительный сезон), показатель готовности принимается равным 1.\nВ случае оценки обеспечения готовности прочих источников тепловой энергии, функционирующих в режиме комбинированной выработки электрической и тепловой энергии, оценка производится в следующем порядке:\nналичие – 1;\nотсутствие – 0.\n"]
["1.1.5",null,"Утвержденные в соответствии с требованиями пункта 2.8.4 Правил технической эксплуатации тепловых энергоустановок эксплуатационные инструкции объектов теплоснабжения и (или) производственные инструкции, разработанные в соответствии с пунктами 278, 363 и 364 Правил промышленной безопасности \n(подпункт 9.3.5 пункта 9 Правил)\n","Показатель наличия эксплуатационных инструкций объектов теплоснабжения \nи (или) производственных инструкций\n",0.1,"Кэкспл/произв.инстр",1,"Необходимо выбрать одно значение, в зависимости от следующих условий:\nналичие – 1;\nотсутствие – 0\n\n\n\n"]
["1.1.6",null,"Копии удостоверений о проверке знаний или журнала проверки знаний, протоколов проверки знаний, предусмотренных пунктами 43 – 45 Правил технической эксплуатации электроустановок потребителей электрической энергии, утвержденных приказом Минэнерго России от 12 августа 2022 г. № 811  (далее – Правила технической эксплуатации электроустановок потребителей), пунктом 2.3.23 Правил технической эксплуатации тепловых энергоустановок и (или) копии удостоверений о допуске к самостоятельной работе обслуживающего персонала или протоколов проверки знаний в области промышленной безопасности работников\nи руководителей, предусмотренные пунктом 238 Правил промышленной безопасности, в случае эксплуатации ОПО\n(подпункт 9.3.6 пункта 9 Правил)\n","Показатель наличия удостоверений проверки знаний или журнала проверки знаний, протоколов проверки знаний и (или) копии удостоверений о допуске к самостоятельной работе обслуживающего персонала или протоколов проверки знаний в области промышленной безопасности работников и руководителей\n\n",0.1,"Кзнаний",{"$f":"IF(OR(G16=0,G17=0),0,E16*G16+E17*G17)","v":1},"Расчет осуществляется автоматически по формуле:\nКзнаний= Кпроток *0,5+Кудост *0,5\n\nЕсли в отношении объекта оценки какой-либо из показателей, указанных в подпунктах 1.1.6.1, 1.1.6.2 настоящего оценочного листа не применим (не подлежит оценке), то расчет показателя готовности в соответствии с настоящим пунктом осуществляется в части критерия, применимого к оценке, при этом показатель определяется по принципу: \nналичие – 1; \nотсутствие – 0.\n\n"]
["1.1.6.1",null,null,"Показатель наличия удостоверений о проверке знаний или журнала проверки знаний, протоколов проверки знаний, предусмотренных Правилами технической эксплуатации электроустановок потребителей, Правилами технической эксплуатации тепловых энергоустановок ",0.5,"Кпров зн не ОПО",1,"В случае эксплуатации объектов, не являющихся ОПО, необходимо выбрать одно значение, в зависимости от следующих условий:\nналичие – 1;\nотсутствие – 0.\nЕсли объекты, не являющиеся ОПО, не эксплуатируются, значение принимается равным 1.\nДля источников тепловой энергии, функционирующих в режиме комбинированной выработки электрической и тепловой энергии, порядок проведения оценки готовности к работе в отопительный период которых установлен Правилами оценки готовности субъектов электроэнергетики к работе в отопительный сезон, утвержденными постановлением Правительства Российской Федерации от 10.05.2017 № 543 (далее – Правила оценки готовности субъектов электроэнергетики к работе в отопительный сезон), показатель готовности принимается равным 1.\nВ случае оценки обеспечения готовности прочих источников тепловой энергии, функционирующих в режиме комбинированной выработки электрической и тепловой энергии, оценка производится в следующем порядке:\nналичие – 1;\nотсутствие – 0.\n\n"]
["1.1.6.2",null,null,"Показатель наличия удостоверений\nо допуске к самостоятельной работе обслуживающего персонала или протоколов проверки знаний в области промышленной безопасности работников и руководителей, предусмотренных Правилами промышленной безопасности, в случае эксплуатации ОПО\n\n",0.5,"Кпров зн ОПО",1,"В случае эксплуатации ОПО необходимо выбрать одно значение в зависимости от следующих условий:\nналичие – 1;\nотсутствие – 0.\nЕсли ОПО не эксплуатируются, значение принимается равным 1.\n\n\n"]
["1.1.7",null,"Копии документов, подтверждающих проведение обучения работников действиям в случае аварии или инцидента на опасном производственном объекте, в соответствии со статьей 10 Федерального закона от 21 июля 1997 г. № 116-ФЗ «О промышленной безопасности опасных производственных объектов» (далее – Федеральный закон о промышленной безопасности)\n(подпункт 9.3.7 пункта 9 Правил)","Показатель наличия документов, подтверждающих проведение обучения работников действиям в случае аварии или инцидента на опасном производственном объекте",0.1,"Кобуч",1,"Необходимо выбрать одно значение, в зависимости от следующих условий:\nналичие – 1;\nотсутствие – 0.\n\nВ случае, если ОПО не эксплуатируются, то Кобуч принимается равным 1. \n\n\n"]
["1.1.8",null,"Установленные пунктами 2.1.2, 2.1.3 Правил технической эксплуатации тепловых энергоустановок организационно-распорядительные документы организации о назначении ответственных лиц за безопасную эксплуатацию тепловых энергоустановок для объектов не отнесенных к ОПО, и (или) установленные пунктом 228 Правил промышленной безопасности при использовании оборудования, работающего под избыточным давлением, ответственных лиц за безопасную эксплуатацию оборудования под давлением и ответственных за осуществление производственного контроля при эксплуатации оборудования на ОПО\n(подпункт 9.3.8 пункта 9 Правил)\n\n","Показатель наличия организационно-распорядительных документов организации о назначении ответственных лиц за тепловые энергоустановки\nи (или) ответственных лиц за безопасную эксплуатацию оборудования под давлением и ответственных за осуществление производственного контроля при эксплуатации оборудования на ОПО\n\n",0.1,"Котв",{"$f":"IF(OR(G20=0,G21=0),0,E20*G20+E21*G21)","v":1},"Котв = Котв неОПО*0,5+ Котв ОПО*0,5\n\nЕсли в соответствии с пунктом 21 Порядка в отношении объекта оценки какой-либо из показателей, указанных в подпунктах 1.1.8.1, 1.1.8.2 настоящего оценочного листа не применим (не подлежит оценке), то расчет показателя готовности в соответствии с настоящим пунктом осуществляется в части критерия, применимого к оценке, при этом показатель определяется по принципу: \nналичие – 1; \nотсутствие – 0.\n\n"]
["1.1.8.1",null,null,"Показатель наличия организационно-распорядительные документы организации о назначении ответственных лиц за безопасную эксплуатацию тепловых энергоустановок для объектов, не отнесенных к ОПО",0.5,"Котв неОПО",1,"В случае эксплуатации объектов, не являющихся ОПО, необходимо выбрать одно значение, в зависимости от следующих условий:\nналичие – 1;\nотсутствие – 0.\nЕсли объекты, не являющиеся ОПО, не эксплуатируются, значение принимается равным 1\nДля источников тепловой энергии, функционирующих в режиме комбинированной выработки электрической и тепловой энергии, порядок проведения оценки готовности к работе в отопительный период которых установлен Правилами оценки готовности субъектов электроэнергетики к работе в отопительный сезон, показатель готовности принимается равным 1.\nВ случае оценки обеспечения готовности прочих источников тепловой энергии, функционирующих в режиме комбинированной выработки электрической и тепловой энергии, оценка производится в следующем порядке:\nналичие – 1;\nотсутствие – 0."]
["1.1.8.2",null,null,"Показатель наличия организационно-распорядительных документов организации о назначении ответственных лиц за безопасную эксплуатацию оборудования под давлением и ответственных за осуществление производственного контроля при эксплуатации оборудования на ОПО",0.5,"Котв ОПО",1,"В случае эксплуатации ОПО необходимо выбрать одно значение в зависимости от следующих условий:\nналичие – 1;\nотсутствие – 0.\nЕсли ОПО не эксплуатируются, значение принимается равным 1.\n\n\n"]
["1.1.9",null,"Утвержденные инструкции по охране труда, утвержденный порядок производства работ повышенной опасности и оформления наряда-допуска, утвержденный перечень работ, выполняемых по нарядам-допускам в соответствии\nс требованиями Правил по охране труда при эксплуатации объектов теплоснабжения и теплопотребляющих установок, утвержденных приказом Минтруда России от 17 декабря \n2020 г. № 924н  \n(подпункт 9.3.9 пункта 9 Правил)","Показатель наличия утвержденных инструкций по охране труда, утвержденный порядок производства работ повышенной опасности и оформления наряда-допуска, утвержденный перечень работ, выполняемых по нарядам-допускам",0.1,"Кохр.труда",1,"Необходимо выбрать одно значение, в зависимости от следующих условий:\nналичие – 1;\nотсутствие – 0\n\nДля источников тепловой энергии, функционирующих в режиме комбинированной выработки электрической и тепловой энергии, порядок проведения оценки готовности к работе в отопительный период которых установлен Правилами оценки готовности субъектов электроэнергетики к работе в отопительный сезон, показатель готовности принимается равным 1.\nВ случае оценки обеспечения готовности прочих источников тепловой энергии, функционирующих в режиме комбинированной выработки электрической и тепловой энергии, оценка производится в следующем порядке:\nналичие – 1;\nотсутствие – 0.\n\n\n"]
["1.1.10",null,"Копии утвержденных в соответствии с пунктом 2.3.48 Правил технической эксплуатации тепловых энергоустановок и с пунктом 236 Правил промышленной безопасности, программ противоаварийных тренировок, журналов, подтверждающих проведение тренировок согласно утвержденной программе противоаварийных тренировок\n(подпункт 9.3.10 пункта 9 Правил)","Показатель наличия программ противоаварийных тренировок, журналов, подтверждающих проведение тренировок согласно утвержденной программе противоаварийных тренировок",0.1,"Ктрен",1,"Необходимо выбрать одно значение, в зависимости от следующих условий:\nналичие – 1;\nотсутствие – 0\n\n"]
["1.2","Проводить наладку принадлежащих им тепловых сетей (пункт 2 части 4 статьи 20 Федерального закона о теплоснабжении) и осуществлять контроль за режимами потребления тепловой энергии (пункт 3 части 4 статьи 20 Федерального закона о теплоснабжении)","Документы, предусмотренные подпунктами 9.3.11 и 9.3.22 Правил","Показатель проведения наладки тепловых сетей и контроля за режимами потребления тепловой энергии",0.01,"Крежим.налад",{"$f":"E25*G25+E26*G26","v":1},"Расчет осуществляется автоматически по формуле:\nКрежим.налад=Ктемп.граф*0,5+Крежим.карт*0,5\n"]
["1.2.1",null,"Разработанные и утвержденные в установленном порядке температурные графики, гидравлические режимы работы системы теплоснабжения на предстоящий отопительный период, разработанные в соответствии с пунктом 6.2.1 Правил технической эксплуатации тепловых энергоустановок, а также копии эксплуатационных инструкций по ведению и контролю режимов работы системы теплоснабжения (подпункт 9.3.11 пункта 9 Правил)\n\n","Показатель наличия температурных графиков, гидравлических режимов работы системы теплоснабжения ",0.5,"Ктемп.граф",1,"Необходимо выбрать одно значение, в зависимости от следующих условий:\nналичие – 1;\nотсутствие – 0\n\n"]
["1.2.2",null,"Технические отчеты о проведении режимно-наладочных испытаний объектов теплоснабжения, утвержденные режимные карты, требования к которым установлены пунктами 2.5.4, 2.8.1, 5.3.6, 9.3.25, 12.11 Правил технической эксплуатации тепловых энергоустановок\n(пункт 9.3.22 пункта 9 Правил)\n","Показатель наличия технических отчетов о проведении режимно-наладочных испытаний объектов теплоснабжения, утвержденных режимных карт  ",0.5,"Крежим.карт",1,"Необходимо выбрать одно значение, в зависимости от следующих условий:\nналичие – 1;\nотсутствие – 0\n\n"]
["1.3","Обеспечивать качество теплоносителей \n(пункт 4 части 4 статьи 20 Федерального закона о теплоснабжении)","Копии утвержденной инструкции по эксплуатации установок для докотловой обработки воды (если предусмотрены проектной документацией объектов теплоснабжения) и инструкции по ведению водно-химического режима, включающей режимные карты, утвержденный график химконтроля за водно-химическим режимом котельных и тепловых сетей, разработанный в соответствии с требованиями пункта 12.9 Правил технической эксплуатации тепловых энергоустановок, пункта 278 Правил промышленной безопасности \n(подпункт 9.3.12 пункта 9 Правил)","Показатель обеспечения качества теплоносителей",0.01,"Ккачест",1,"Необходимо выбрать одно значение, в зависимости от следующих условий:\nналичие – 1;\nотсутствие – 0\n\n\n"]
["1.4","Организовывать коммерческий учет приобретаемой тепловой энергии и реализуемой тепловой энергии (пункт 5 части 4 статьи 20 Федерального закона о теплоснабжении)","Копии актов ввода в эксплуатацию и актов периодической проверки узла учета и средств измерений, входящих в состав узла учета (в случае организации коммерческого учета), акты разграничения балансовой принадлежности, предусмотренные Правилами коммерческого учета тепловой энергии, теплоносителя, утвержденными постановлением Правительства Российской Федерации от 18 ноября 2013 г. № 1034 (далее – Правила коммерческого учета). Результаты поверки приборов и средств измерений, входящих в состав узла учета и подлежащих поверке, подтверждаются в порядке, предусмотренном законодательством об обеспечении единства измерений \n(подпункт 9.3.13 пункта 9 Правил)","Показатель организации коммерческого учета приобретаемой тепловой энергии и реализуемой тепловой энергии",0.01,"Ккомм.учет",1,"Необходимо выбрать одно значение, в зависимости от следующих условий:\nналичие – 1;\nотсутствие – 0\n\n\n"]
["1.5","Обеспечивать проверку качества строительства, реконструкции и (или) модернизации принадлежащих теплоснабжающим, теплосетевым организациям тепловых сетей, в том числе качества тепловой изоляции (пункт 6 части 4 статьи 20 Федерального закона о теплоснабжении)","Разработанный в соответствии с пунктом 2.7.10 Правил технической эксплуатации тепловых энергоустановок нормативно-технический документ\nоб организации ремонтного производства, разработке ремонтной документации, планированию и подготовке к ремонту, выводу в ремонт и производству ремонта,\nа также приемке и оценке качества ремонта, а также акты приемки объектов теплоснабжения и теплопотребляющих установок из ремонта с приложением дефектных ведомостей (при наличии), протоколов испытаний и наладки, предусмотренные пунктом 2.7.13 Правил технической эксплуатации тепловых энергоустановок – в случае эксплуатации объектов, не являющихся ОПО, и (или) копии удостоверений (свидетельств) о качестве монтажа в случае выполнения мероприятий по строительству, реконструкции и (или) модернизации тепловых сетей – в случае эксплуатации ОПО.\n(подпункт 9.3.14 пункта 9 Правил)\n","Показатель наличия нормативно-технического документа по организации ремонтного производства, разработке ремонтной документации, планированию и подготовке к ремонту, выводу в ремонт и производству ремонта, а также приемке и оценке качества ремонта",0.25,"Ккач.строит",1,"Необходимо выбрать одно значение, в зависимости от следующих условий:\nналичие – 1;\nотсутствие – 0\n\n\nДля источников тепловой энергии, функционирующих в режиме комбинированной выработки электрической и тепловой энергии, порядок проведения оценки готовности к работе в отопительный период которых установлен Правилами оценки готовности субъектов электроэнергетики к работе в отопительный сезон, показатель готовности принимается равным 1.\nВ случае оценки обеспечения готовности прочих источников тепловой энергии, функционирующих в режиме комбинированной выработки электрической и тепловой энергии, оценка производится в следующем порядке:\nналичие – 1;\nотсутствие – 0. \n\nЗначение индекса готовности Итсо не может быть более 0,8 в случае, если данный показатель равен 0. \n\n\n\n\n"]
["1.6","Обеспечивать надежное теплоснабжение потребителей (пункт 7 части 4 статьи 20 Федерального закона о теплоснабжении)","Документы, предусмотренные подпунктами 9.3.15 – 9.3.21, 9.3.123 – 9.3.29, пункта 9 Правил","Показатель обеспечения надежного теплоснабжения потребителей",0.65,"Кнадеж",{"$f":"E31*G31+E34*G34+E35*G35+E36*G36+E37*G37+E38*G38+E39*G39+E40*G40+E41*G41+E42*G42+E47*G47+E49*G49","v":1},"Расчет осуществляется автоматически по формуле:\nКнадеж=Косвид*0,01+Кобслед*0,05+\nКдым.труб*0,05+Киспыт*0,01+\nКгидр*0,4+Кшурф*0,01+Кочист.промыв*0,4+\nКэлектр.сопр*0,01+Кнасос стан*0,01+Ктопл*0,03+\nКматер*0,01+Кстрах*0,01\n"]
["1.6.1",null,"Копии паспортов паровых и (или) водогрейных котельных установок, центральных тепловых пунктов\nи оборудования, работающего под избыточным давлением, с отметками:\nо проведении технических освидетельствований, актов о проведении гидравлических испытаний с выводами об отсутствии выявленных дефектов, запрещающих эксплуатацию. Для оборудования, отработавшего установленный в технической документации организации–изготовителя или проектной документации срок службы, или при превышении количества циклов его нагрузки – сведения о зарегистрированных федеральным органом исполнительной власти в области промышленной безопасности заключениях экспертизы промышленной безопасности (для ОПО) в соответствии с частью 2 статьи 7 Федерального закона о промышленной безопасности и заключениях о проведении технического диагностирования (для объектов, не являющихся ОПО) с выводами о продлении срока эксплуатации оборудования в соответствии с пунктом 13.2 Правил технической эксплуатации тепловых энергоустановок; о проверке плотности (герметичности), настройки и регулировки предохранительных клапанов\n(подпункт 9.3.15 пункта 9 Правил)\n","Показатель наличия паспортов паровых и (или) водогрейных котельных установок, центральных тепловых пунктов\nи оборудования, работающего под избыточным давлением с выводами о продлении срока эксплуатации\n",0.01,"Косвид",{"$f":"IF(OR(G32=0,G33=0),0,E32*G32+E33*G33)","v":1},"Расчет осуществляется автоматически по формуле:\nКосвид= Косвид ОПО *0,5+ Косвид не ОПО*0,5\n\nЕсли в отношении объекта оценки какой-либо из показателей, указанных в подпунктах 1.6.1.1, 1.6.1.2 настоящего оценочного листа не применим (не подлежит оценке), то расчет показателя готовности в соответствии с настоящим пунктом осуществляется в части критерия, применимого к оценке, при этом показатель определяется по принципу: \nналичие – 1; \nотсутствие – 0.\n"]
["1.6.1.1",null,null,"Показатель наличия отметок в паспорте оборудования, не являющегося ОПО, о проведенном техническом освидетельствовании, гидравлическом испытании, техническом диагностировании, настройки предохранительных клапанов с выводами о продлении срока эксплуатации",0.5,"Косвид не ОПО",1,"В случае эксплуатации объектов, не являющихся ОПО, необходимо выбрать одно значение, в зависимости от следующих условий:\nналичие – 1;\nотсутствие – 0.\nЕсли объекты, не являющиеся ОПО, не эксплуатируются, значение принимается равным 1.\n\nДля источников тепловой энергии, функционирующих в режиме комбинированной выработки электрической и тепловой энергии, порядок проведения оценки готовности к работе в отопительных период которых установлен Правилами оценки готовности субъектов электроэнергетики к работе в отопительный сезон, показатель готовности принимается равным 1.\nВ случае оценки обеспечения готовности прочих источников тепловой энергии, функционирующих в режиме комбинированной выработки электрической и тепловой энергии, оценка производится в следующем порядке:\nналичие – 1;\nотсутствие – 0.\n\n\n\n"]
["1.6.1.2",null,null,"Показатель наличия отметок в паспорте оборудования о проведенных техническом освидетельствовании, гидравлическом испытании, экспертизы промышленной безопасности, настройки и регулировки предохранительных клапанов с выводами о продлении срока эксплуатации",0.5,"Косвид ОПО",1,"В случае эксплуатации ОПО необходимо выбрать одно значение в зависимости от следующих условий:\nналичие – 1;\nотсутствие – 0.\nЕсли ОПО не эксплуатируются, значение принимается равным 1.\n\n\n"]
["1.6.2",null,"Копии актов комплексного обследования, очередных и внеочередных осмотров зданий и сооружений объектов теплоснабжения, журналов, паспортов зданий и сооружений, определенных перечнем документации эксплуатирующей организации, в которые занесены результаты текущих осмотров в соответствии\nс пунктом 3.1.3 Правил технической эксплуатации тепловых энергоустановок \n(подпункт 9.3.16 пункта 9 Правил)\n\n","Показатель наличия актов комплексного обследования, очередных и внеочередных осмотров зданий и сооружений объектов теплоснабжения, журналов, паспортов зданий и сооружений, определенных перечнем документации эксплуатирующей организации, в которые занесены результаты текущих осмотров",0.05,"Кобслед",1,"Необходимо выбрать одно значение, в зависимости от следующих условий:\nналичие – 1;\nотсутствие – 0.\n\nДля источников тепловой энергии, функционирующих в режиме комбинированной выработки электрической и тепловой энергии, порядок проведения оценки готовности к работе в отопительный период которых установлен Правилами оценки готовности субъектов электроэнергетики к работе в отопительный сезон, показатель готовности принимается равным 1.\nВ случае оценки обеспечения готовности прочих источников тепловой энергии, функционирующих в режиме комбинированной выработки электрической и тепловой энергии, оценка производится в следующем порядке:\nналичие – 1;\nотсутствие – 0. \n\n\n\n\n"]
["1.6.3",null,"Копии актов и паспортов дымовых труб, в которых в соответствии с требованиями пункта 3.3.14 Правил технической эксплуатации тепловых энергоустановок отражены результаты наблюдений за техническим состоянием дымовых труб, за осадкой фундаментов, мониторингом деформации, проверок вертикальности, инструментальной проверки заземляющего контура, наблюдения за исправностью осветительной арматуры дымовых труб\n(подпункт 9.3.17 пункта 9 Правил)\n\n\n","Показатель наличия актов и паспортов дымовых труб, в которых отражены результаты наблюдений за техническим состоянием дымовых труб, за осадкой фундаментов, мониторингом деформации, проверок вертикальности, инструментальной проверки заземляющего контура, наблюдения за исправностью осветительной арматуры дымовых труб",0.05,"Кдым.труб",1,"Необходимо выбрать одно значение, в зависимости от следующих условий:\nналичие – 1;\nотсутствие – 0.\n\nВ случае, если организация не владеет и не эксплуатирует источники теплоснабжения, Кдым.труб принимается равным 1.\n\nДля источников тепловой энергии, функционирующих в режиме комбинированной выработки электрической и тепловой энергии, порядок проведения оценки готовности к работе в отопительный период которых установлен Правилами оценки готовности субъектов электроэнергетики к работе в отопительный сезон, показатель готовности принимается равным 1.\nВ случае оценки обеспечения готовности прочих источников тепловой энергии, функционирующих в режиме комбинированной выработки электрической и тепловой энергии, оценка производится в следующем порядке:\nналичие – 1;\nотсутствие – 0. \n\n"]
["1.6.4",null,"Акты (технические отчеты) о проведении испытаний тепловых сетей (в соответствии с графиком проведения испытаний, утвержденным руководителем (техническим руководителем) организации) на максимальную температуру, о проведении испытаний по определению тепловых потерь через тепловую изоляцию, о проведении испытания по определению гидравлических потерь трубопроводов водяных тепловых сетей в сроки, установленные пунктом 6.2.32 Правил технической эксплуатации тепловых энергоустановок \n(подпункт 9.3.18 пункта 9 Правил)\n\n","Показатель наличия актов (технических отчетов) о проведении испытаний тепловых сетей (в соответствии \nс графиком проведения испытаний, утвержденным руководителем (техническим руководителем) организации) на максимальную температуру,\nо проведении испытаний по определению тепловых потерь через тепловую изоляцию, \nо проведении испытания по определению гидравлических потерь трубопроводов водяных тепловых сетей\n",0.01,"Киспыт",1,"Необходимо выбрать одно значение, в зависимости от следующих условий:\nналичие – 1;\nотсутствие – 0.\n\nВ случае, если организация не владеет и не эксплуатирует тепловые сети, Киспыт принимается равным 1.\n\nДля источников тепловой энергии, функционирующих в режиме комбинированной выработки электрической и тепловой энергии, порядок проведения оценки готовности к работе в отопительный период которых установлен Правилами оценки готовности субъектов электроэнергетики к работе в отопительный сезон, показатель готовности принимается равным 1.\nВ случае оценки обеспечения готовности прочих источников тепловой энергии, функционирующих в режиме комбинированной выработки электрической и тепловой энергии, оценка производится в следующем порядке:\nналичие – 1;\nотсутствие – 0."]
["1.6.5",null,"Акты проведения гидравлических испытаний на прочность и плотность трубопроводов тепловых сетей в соответствии с пунктом 6.2.16 Правил технической эксплуатации тепловых энергоустановок \n(подпункт 9.3.19 пункта 9 Правил)\n\n\n","Показатель наличия актов проведения гидравлических испытаний на прочность и плотность трубопроводов тепловых сетей ",0.4,"Кгидр",1,"Необходимо выбрать одно значение, в зависимости от следующих условий:\nналичие – 1;\nотсутствие – 0.\n\nВ случае, тепловые сети не эксплуатируются, Кгидр принимается равным 1.\n\nЗначение индекса готовности Итсо не может быть более 0,8 в случае, если данный показатель равен 0. \n\n"]
["1.6.6",null,"Документы, подтверждающие проведение мероприятий по контролю за состоянием подземных трубопроводов тепловой сети (за исключением неметаллических), проложенных в непроходных каналах, и при бесканальной прокладке, требования к проведению которых установлены пунктами \n6.2.34 – 6.2.37 Правил технической эксплуатации тепловых энергоустановок \n(подпункт 9.3.20 пункта 9 Правил)\n\n","Показатель наличия документов, подтверждающих проведение мероприятий по контролю за состоянием подземных трубопроводов тепловой сети (за исключением неметаллических), проложенных в непроходных каналах, и при бесканальной прокладке\n",0.01,"Кшурф",1,"Необходимо выбрать одно значение, в зависимости от следующих условий:\nналичие – 1;\nотсутствие – 0.\n\nВ случае если организация не владеет и не эксплуатирует тепловые сети или тепловые сети проложены воздушной прокладкой или в проходном (полупроходном) канале, Кшурф принимается равным 1.\n\n"]
["1.6.7",null,"Акты о проведении очистки и промывки тепловых сетей, тепловых пунктов, требования к которым установлены пунктами 5.3.37, 6.2.17, 12.18 Правил технической эксплуатации тепловых энергоустановок. (подпункт 9.3.21 пункта 9 Правил)\n\n","Показатель наличия актов о проведении очистки и тепловых сетей, тепловых пунктов ",0.4,"Кочист.промыв",1,"Необходимо выбрать одно значение, в зависимости от следующих условий:\nналичие – 1;\nотсутствие – 0.\n\nДля источников тепловой энергии, функционирующих в режиме комбинированной выработки электрической и тепловой энергии, порядок проведения оценки готовности к работе в отопительный период которых установлен Правилами оценки готовности субъектов электроэнергетики к работе в отопительный сезон, показатель готовности принимается равным 1.\nВ случае оценки обеспечения готовности прочих источников тепловой энергии, функционирующих в режиме комбинированной выработки электрической и тепловой энергии, оценка производится в следующем порядке:\nналичие – 1;\nотсутствие – 0. \n\nЗначение индекса готовности Итсо не может быть более 0,8 в случае, если данный показатель равен 0. \n"]
["1.6.8",null,"Акт измерений удельного электрического сопротивления грунта и потенциалов блуждающих токов в соответствии с требованиями пункта 6.2.43 Правил технической эксплуатации тепловых энергоустановок \n(подпункт 9.3.23 Пункта 9 Правил)\n\n","Показатель наличия актов измерений удельного электрического сопротивления грунта и потенциалов блуждающих токов",0.01,"Кэлектр.сопр",1,"Необходимо выбрать одно значение, в зависимости от следующих условий:\nналичие – 1;\nотсутствие – 0.\n\nВ случае, если тепловые сети не эксплуатируются, Кэлектр.сопр принимается равным 1.\n\n\n"]
["1.6.9",null,"Акт опробования работоспособности оборудования насосных станций, проведение которого установлено требованиями пункта 6.2.48 Правил технической эксплуатации тепловых энергоустановок \n(подпункт 9.3.24 Пункта 9 Правил)","показатель наличия акта опробования работоспособности оборудования насосных станций",0.01,"Кнасос.стан",1,"Необходимо выбрать одно значение, в зависимости от следующих условий:\nналичие – 1;\nотсутствие – 0\n"]
["1.6.10",null,"Копии договора (договоров) (за исключением охраняемой законом тайны) поставки основного топлива, заключенного (заключенных) на срок не менее срока предстоящего отопительного периода, и копии документов, подтверждающих наличие фактических запасов основного и резервного (аварийного) топлива в объеме не менее утвержденного федеральным органом исполнительной власти или органами исполнительной власти субъектов Российской Федерации нормативов запасов топлива на источниках тепловой энергии в соответствии с Порядком определения нормативов запасов топлива на источниках тепловой энергии (за исключением источников тепловой энергии, функционирующих в режиме комбинированной выработки электрической и тепловой энергии), утвержденным приказом Минэнерго России от 10 августа 2012 г. № 377\n(подпункт 9.3.25 пункта 9 Правил)\n\n \n \n\n\n \n","Показатель наличия запаса топлива, не менее утвержденных нормативов запасов топлива",0.03,"Ктопл",{"$f":"E43*G43+E44*G44","v":1},"Расчет осуществляется автоматически по формуле:\nКтопл= Кдогтопл*0,5+ Кзапаст*0,5 \n"]
["1.6.10.1",null,null,"Показатель наличия договора (договоров) поставки основного топлива, заключенного (заключенных) на срок не менее срока предстоящего отопительного периода",0.5,"Кдогтопл",1,"Необходимо выбрать одно значение, в зависимости от следующих условий:\nКдогтопл=1, если подтверждено наличие договоров;\nКдогтопл=0, если не подтверждено наличие договоров \n"]
["1.6.10.2",null,null,"Показатель подтверждения наличия запаса топлива, не менее утвержденных нормативов запасов топлива",0.5,"Кзапаст",{"$f":"IF(G45<G46,0,1)","v":1},"Значение выставляется автоматически, в зависимости от следующих условий:\nКзапаст=1, если Запасфакт≥Запаснормат\nКзапаст=0, если Запасфакт<Запаснормат\n\nДля источников тепловой энергии, функционирующих в режиме комбинированной выработки электрической и тепловой энергии, порядок проведения оценки готовности к работе в отопительный период которых установлен Правилами оценки готовности субъектов электроэнергетики к работе в отопительный сезон, показатель готовности принимается равным 1.\nВ случае оценки обеспечения готовности прочих источников тепловой энергии, функционирующих в режиме комбинированной выработки электрической и тепловой энергии, оценка производится в следующем порядке:\nКзапаст=1, если Запасфакт≥Запаснормат\nКзапаст=0, если Запасфакт<Запаснормат\n\n"]
["1.6.10.2.1",null,null,"Фактический объем запаса топлива, тыс. т  ","–","Запасфакт",1,"фактическое значение объема запаса топлива, тыс. т."]
["1.6.10.2.2",null,null,"Утвержденный нормативный объем запаса топлива, тыс. т","–","Запаснормат ",1,"фактическое значение утвержденного нормативного запаса топлива, тыс. т"]
["1.6.11",null,"Утвержденный в соответствии с требованиями пункта 2.7.3 Правил технической эксплуатации тепловых энергоустановок, перечень запасов материалов, запорной арматуры, запасных частей, средств механизации для выполнения срочных внеплановых (аварийных) ремонтных работ, результаты последней проведенной инвентаризации запасов материалов, запорной арматуры, запасных частей, средств механизации для выполнения срочных внеплановых (аварийных) ремонтных работ, оформленные в соответствии с требованиями Положения по ведению бухгалтерского учета и бухгалтерской отчетности в Российской Федерации, утвержденного приказом Минфина России от 29 июля 1998 г. № 34н \n(подпункт 9.3.26 Пункта 9 Правил)\n\n\n\n","Показатель наличия запасов материалов, запорной арматуры, запасных частей, средств механизации\n \n",0.01,"Кматер",{"$f":"G48/100","v":1},"Расчет осуществляется автоматически по формуле:\nКматер=% наличия запас мат факт по инвентар/100\n\nДля источников тепловой энергии, функционирующих в режиме комбинированной выработки электрической и тепловой энергии, порядок проведения оценки готовности к работе в отопительных период которых установлен Правилами оценки готовности субъектов электроэнергетики к работе в отопительный сезон, показатель готовности принимается равным 1.\nВ случае оценки обеспечения готовности прочих источников тепловой энергии, функционирующих в режиме комбинированной выработки электрической и тепловой энергии, оценка производится в следующем порядке:\nналичие – 1;\nотсутствие – 0.\n\n"]
["1.6.11.1",{"$nulls":3},"–","% наличия запас мат факт по инвентар",100,"Фактическое значение наличия материальных запасов по инвентаризации, выраженное в процентах от необходимого."]
["1.6.12",null,"В соответствии с требованиями части 1 статьи 9 Федерального закона о промышленной безопасности копия лицензии или выписки из реестра лицензий Ростехнадзора, копия договора обязательного страхования гражданской ответственности, заключенного в соответствии с законодательством Российской Федерации об обязательном страховании гражданской ответственности владельца опасного объекта за причинение вреда в результате аварии на опасном объекте. Требование не распространяется на объекты теплоснабжения организаций, подведомственных федеральным органам исполнительной власти в сфере обороны, обеспечения безопасности, государственной охраны, внешней разведки, мобилизационной подготовки и мобилизации\n(подпункт 9.3.27 пункта 9 Правил)","Показатель наличия лицензии Ростехнадзора и договора обязательного страхования гражданской ответственности",0.01,"Кстрах",1,"Необходимо выбрать одно значение, в зависимости от следующих условий:\nналичие – 1;\nотсутствие – 0.\n\nВ случае эксплуатации только объектов, не являющиеся ОПО, значение принимается равным 1.\n\n\n"]
["1.7","Выполнять мероприятия по резервированию систем теплоснабжения, определенные утвержденной актуализированной схемой теплоснабжения и включенные в инвестиционную программу теплоснабжающей или теплосетевой организации (пункт 8 части 4 статьи 20 Федерального закона о теплоснабжении)","Разрешение на допуск в эксплуатацию и (или) временное разрешение на допуск в эксплуатацию на объекты теплоснабжения в соответствии с требованиями Правил выдачи разрешений на допуск в эксплуатацию энергопринимающих установок потребителей электрической энергии, объектов по производству электрической энергии, объектов электросетевого хозяйства, объектов теплоснабжения и теплопотребляющих установок, утвержденных постановлением Правительства Российской Федерации от 30 января 2021 г. № 85 , построенных для реализации мероприятий по резервированию систем теплоснабжения в текущем отопительном периоде (в части мероприятий, определенных утвержденной актуализированной схемой теплоснабжения и включенных в инвестиционную программу теплоснабжающей или теплосетевой организации согласно части 8 статьи 20 и части 10 статьи 29 Федерального закона о теплоснабжении)\n(подпункт 9.3.29 пункта 9 Правил) \n\n","Показатель наличия разрешения на допуск в эксплуатацию энергопринимающих установок потребителей электрической энергии, объектов по производству электрической энергии, объектов электросетевого хозяйства, объектов теплоснабжения и теплопотребляющих установок, построенных для реализации мероприятий по резервированию систем теплоснабжения ",0.01,"Крезерв",1,"Необходимо выбрать одно значение, в зависимости от следующих условий:\nналичие – 1;\nотсутствие – 0\n\n\n"]
["1.8","Иметь согласованный с органом местного самоуправления порядок (план) действий по ликвидации последствий аварийных ситуаций в сфере теплоснабжения (пункт 9 части 4 статьи 20 Федерального закона о теплоснабжении)","Утвержденный в соответствии с требованиями пункта 15.4.3 Правил технической эксплуатации тепловых энергоустановок и (или) Положения о разработке планов мероприятий по локализации и ликвидации последствий аварий на опасных производственных объектах, утвержденного постановлением Правительства Российской Федерации от 15 сентября 2020 г. № 1437 , порядок (план) действий по ликвидации последствий аварийных ситуаций в сфере теплоснабжения или предусмотренные пунктом 386 Правил промышленной безопасности, инструкции, устанавливающие действия работников в аварийных ситуациях (в том числе при аварии)\n\n","Показатель наличия порядка (плана) действий по ликвидации последствий аварийных ситуаций в сфере теплоснабжения",0.01,"Кпорядок",1,"Необходимо выбрать одно значение, в зависимости от следующих условий:\nналичие – 1;\nотсутствие – 0\n\n"]
["2","Обеспечить выполнение в установленные сроки предписаний, влияющих на надежность работы в отопительный период, выданных федеральным органом исполнительной власти государственного энергетического надзора, федерального государственного надзора в области промышленной безопасности, федеральными органами исполнительной власти в сфере обороны, обеспечения безопасности, государственной охраны, внешней разведки, мобилизационной подготовки и мобилизации, исполнения наказаний (их подразделениями) (в случаях, предусмотренных пунктом 2 части 1 статьи 41 Федерального закона о теплоснабжении и абзацем вторым пункта 2 статьи 5 Федерального закона о промышленной безопасности, об устранении нарушений требований пунктов 2.3.14, 2.3.15, 2.8.1, 3.3.4 – 3.3.8, 4.1.1, 5.3.6, 5.3.26, 5.3.31, 5.3.32, 5.3.52, 6.2.16, 6.2.26, 6.2.32, 6.2.48, 6.2.52, 6.2.60, 6.2.62, 8.2.1 – 8.2.5, 8.2.12, 8.2.13, 10.1.9, 11.1, 11.2, 11.5, 15.1.5 – 15.1.7 Правил технической эксплуатации тепловых энергоустановок и пунктов 394, 396 – 399, 403 Правил промышленной безопасности\n(подпункт 9.2 пункта 9 Правил)","Справка об отсутствии невыполненных в установленные сроки предписаний об устранении нарушений требований пунктов 2.3.14, 2.3.15, 2.8.1, \n3.3.4 – 3.3.8, 4.1.1, 5.3.6, 5.3.26, 5.3.31, 5.3.32, 5.3.52, 6.2.16, 6.2.26, 6.2.32, 6.2.48, 6.2.52, 6.2.60, 6.2.62, 8.2.1 – 8.2.5, 8.2.12, 8.2.13, 10.1.9, 11.1, 11.2, 11.5, 15.1.5 – 15.1.7 Правил технической эксплуатации тепловых энергоустановок и пунктов 394, 396 – 399, 403 Правил промышленной безопасности при использовании оборудования, работающего под избыточным давлением, влияющих на надежность работы в отопительный период, выданных федеральным органом исполнительной власти государственного энергетического надзора, федерального государственного надзора в области промышленной безопасности, федеральными органами исполнительной власти в сфере обороны, обеспечения безопасности, государственной охраны, внешней разведки, мобилизационной подготовки и мобилизации, исполнения наказаний (их подразделениями) (в случаях, предусмотренных пунктом 2 части 1 статьи 4.1 Федерального закона о теплоснабжении и абзацем вторым пункта 2 статьи 5 Федерального закона о промышленной безопасности) \n(подпункт 9.2 пункта 9 Правил)","Показатель выполнения предписаний, влияющих на надежность работы в отопительный период",0.05,"Кпредп",1,"Необходимо выбрать одно значение, в зависимости от следующих условий:\nналичие – 1;\nотсутствие – 0\n\n\n"]
["3","Обеспечить выполнение плана подготовки к отопительному периоду, предусмотренного пунктом 3 Правил (подпункт 9.3 пункта 9 Правил)","План подготовки к отопительному периоду \n(пункт 3 Правил)\n\n","Показатель наличия утвержденного плана подготовки к отопительному периоду",0.05,"Кплан",1,"Необходимо выбрать одно значение, в зависимости от следующих условий:\nналичие – 1;\nотсутствие – 0\n\n\n"]

{"sheet":"Приложение № 3","index":2,"n_rows":42,"n_cols":8,"rows_kept":42,"merged":[[0,0,0,7],[2,3,2,5],[4,1,19,1],[7,2,9,2],[11,2,13,2],[15,2,17,2],[20,1,22,1],[25,1,38,1],[26,2,28,2],[36,2,37,2],[36,3,37,3]]}
["Образец расчета индекса готовности к отопительному периоду владельцев тепловых сетей, не являющихся теплосетевыми организациями\nжелтые ячейки - значения расчитываются автоматически, запрещено вносить изменения; \nзеленые ячейки - выбор значений 0 или 1;\nсиние ячейки - фактическое численное значение"]
["№ п/п","Обязательное требование","Подтверждающий документ","Показатель","Вес показателя","Наименование показателя","Расчет показателей готовности (рабочие формулы и ячейки для заполненния)","Примечания к расчетам показателей готовности "]
[{"$nulls":3},"ИНДЕКС ГОТОВНОСТИ",null,null,{"$f":"E4*G4+E41*G41+E42*G42","v":1},"Расчет осуществляется автоматически по формуле:\nИэкс-тсо= Кзакон о тепл*0,9+Кпредп*0,05+Кплан*0,05\n"]
["1","Выполнить требования, установленные пунктами 1 – 4, 6, 7, 9 части 4 статьи 20 Федерального закона от 27 июля 2010 г. № 190-ФЗ «О теплоснабжении» (далее – Федеральный закон о теплоснабжении)\n(пункт 10 Правил обеспечения готовности к отопительному периоду, утвержденных приказом Минэнерго России от 13 ноября 2024 г. № 2234 \n(далее – Правила):\n\n\n","– ","Показатель выполнения требований Федерального \nзакона о теплоснабжении",0.9,"Кзакон о тепл",{"$f":"E5*G5+E21*G21+E24*G24+E25*G25+E26*G26+E40*G40","v":1},"Расчет осуществляется автоматически по формуле:\nКзакон о тепл= Кфунк*0,05+Крежим.налад*0,01+\nКкачест*0,01+Ккач.строит*0,3+Кнадеж*0,62+\nКпорядок*0,01\n"]
["1.1","Обеспечивать функционирование эксплуатационной, диспетчерской и аварийной служб\n(пункт 1 части 4 статьи 20 Федерального закона о теплоснабжении)\n","Документы, предусмотренные подпунктами 9.3.1, \n9.3.3 – 9.3.8 пункта 9 Правил\n","Показатель обеспечения функционирования эксплуатационной, диспетчерской и аварийной служб ",0.05,"Кфункц",{"$f":"E6*G6+E7*G7+E8*G8+E11*G11+E12*G12+E15*G15+E16*G16+E19*G19+E20*G20","v":1},"Кфункц=Кшт*0,1+Кдисп*0,1+Кперечень*0,1+\nКэксп/произв.инстр*0,1+Кзнаний*0,1+\nКобуч*0,1+Котв*0,1+Кохр.труда*0,15+\nКтрен*0,15\n"]
["1.1.1",null,"Выписка из утвержденного штатного расписания, подтверждающая наличие персонала, осуществляющего функции эксплуатационной, диспетчерской и аварийной служб или договоры на техническое обслуживание, энергосервисные контракты в случае привлечения специализированных организаций для эксплуатации оборудования\n(подпункт 9.3.1 пункта 9 Правил)\n\n","Показатель наличия персонала, осуществляющего функции эксплуатационной, диспетчерской и аварийной служб или договоров на техническое обслуживание, энергосервисных контрактов",0.1,"Кшт",1,"Необходимо выбрать одно значение, в зависимости от следующих условий:\nналичие – 1;\nотсутствие – 0\n\n\n"]
["1.1.2",null,"Утвержденное положение о диспетчерской службе или распорядительный документ организации о назначении ответственного за диспетчерское управление в соответствии с требованиями раздела 15 Правил технической эксплуатации тепловых энергоустановок, утвержденных приказом Минэнерго России от 24 марта 2003 г. № 115  \n(далее – Правила технической эксплуатации тепловых энергоустановок) \n(подпункт 9.3.3 пункта 9 Правил)\n","Показатель наличия положение о диспетчерской службе или распорядительный документ организации о назначении ответственного за диспетчерское управление",0.1,"Кдисп",1,"Необходимо выбрать одно значение, в зависимости от следующих условий:\nналичие – 1;\nотсутствие – 0\n\n"]
["1.1.3",null,"Организационно-распорядительные документы об утверждении перечня производственных инструкций для безопасной эксплуатации котлов и вспомогательного оборудования в случае эксплуатации опасных производственных объектов (далее – ОПО), разработанного в соответствии с пунктом 278 Правил промышленной безопасности при использовании оборудования, работающего под избыточным давлением, утвержденных приказом Ростехнадзора от 15 декабря 2020 г. № 536  (далее – Правила промышленной безопасности), и (или) перечня документации эксплуатирующей организации для объектов, не являющихся ОПО, разработанного в соответствии с пунктом 2.8.2 Правил технической эксплуатации тепловых энергоустановок\n(подпункт 9.3.4 пункта 9 Правил)\n \n","Показатель наличия перечня производственных инструкций для безопасной эксплуатации котлов и вспомогательного оборудования\n",0.1,"Кперечень",{"$f":"IF(OR(G9=0,G10=0),0,E9*G9+E10*G10)","v":1},"Расчет осуществляется автоматически по формуле:\nКперечень= КпереченьОПО*0,5+ Кперечень неОПО*0,5\n\nЕсли в отношении объекта оценки какой-либо из показателей, указанных в подпунктах 1.1.3.1, 1.1.3.2 настоящего оценочного листа не применим (не подлежит оценке), то расчет показателя готовности в соответствии с настоящим пунктом осуществляется в части критерия, применимого к оценке, при этом показатель определяется по принципу: \nналичие – 1; \nотсутствие – 0.\n"]
["1.1.3.1",null,null,"Показатель наличия перечня производственных инструкций для безопасной эксплуатации котлов и вспомогательного оборудования в случае эксплуатации ОПО",0.5,"КпереченьОПО",1,"В случае эксплуатации ОПО необходимо выбрать одно значение в зависимости от следующих условий:\nналичие – 1;\nотсутствие – 0.\nЕсли ОПО не эксплуатируются, значение принимается равным 1.\n\n"]
["1.1.3.2",null,null,"Показатель наличия перечня документации эксплуатирующей организации для объектов, не являющихся ОПО",0.5,"Кперечень неОПО",1,"В случае эксплуатации объектов, не являющихся ОПО, необходимо выбрать одно значение, в зависимости от следующих условий:\nналичие – 1;\nотсутствие – 0.\nЕсли объекты, не являющиеся ОПО, не эксплуатируются, значение принимается равным 1.\nДля источников тепловой энергии, функционирующих в режиме комбинированной выработки электрической и тепловой энергии, порядок проведения оценки готовности к работе в отопительный период которых установлен Правилами оценки готовности субъектов электроэнергетики к работе в отопительный сезон, утвержденными постановлением Правительства Российской Федерации от 10.05.2017 № 543 (далее – Правила оценки готовности субъектов электроэнергетики к работе в отопительный сезон), показатель готовности принимается равным 1.\nВ случае оценки обеспечения готовности прочих источников тепловой энергии, функционирующих в режиме комбинированной выработки электрической и тепловой энергии, оценка производится в следующем порядке:\nналичие – 1;\nотсутствие – 0.\n\n"]
["1.1.4",null,"Утвержденные в соответствии с требованиями пункта 2.8.4 Правил технической эксплуатации тепловых энергоустановок эксплуатационные инструкции объектов теплоснабжения и (или) производственные инструкции, разработанные в соответствии с пунктами 278, 363 и 364 Правил промышленной безопасности \n(подпункт 9.3.5 пункта 9 Правил)\n","Показатель наличия эксплуатационных инструкций объектов теплоснабжения и (или) производственных инструкций",0.1,"Кэкспл/произв.инстр",1,"Необходимо выбрать одно значение, в зависимости от следующих условий:\nналичие – 1;\nотсутствие – 0\n\n\n"]
["1.1.5",null,"Копии удостоверений о проверке знаний или журнала проверки знаний, протоколов проверки знаний, предусмотренных пунктами 43 – 45 Правил технической эксплуатации электроустановок потребителей электрической энергии, утвержденных приказом Минэнерго России от 12 августа 2022 г. № 811 (далее – Правила технической эксплуатации электроустановок потребителей), пунктом 2.3.23 Правил технической эксплуатации тепловых энергоустановок и (или) копии удостоверений о допуске к самостоятельной работе обслуживающего персонала или протоколов проверки знаний в области промышленной безопасности работников\nи руководителей, предусмотренные пунктом 238 Правил промышленной безопасности, в случае эксплуатации ОПО\n(подпункт 9.3.6 пункта 9 Правил)\n\n","Показатель наличия удостоверений проверки знаний или журнала проверки знаний, протоколов проверки знаний и (или) копии удостоверений о допуске к самостоятельной работе обслуживающего персонала или протоколов проверки знаний в области промышленной безопасности работников и руководителей\n",0.1,"Кзнаний",{"$f":"IF(OR(G13=0,G14=0),0,E13*G13+E14*G14)","v":1},"Расчет осуществляется автоматически по формуле:\nКзнаний = Кпров зн не ОПО*0,5+Кпров зн ОПО*0,5\n\nЕсли в отношении объекта оценки какой-либо из показателей, указанных в подпунктах 1.1.5.1, 1.1.5.2 настоящего оценочного листа не применим (не подлежит оценке), то расчет показателя готовности в соответствии с настоящим пунктом осуществляется в части критерия, применимого к оценке, при этом показатель определяется по принципу: \nналичие – 1; \nотсутствие – 0.\n\n\n"]
["1.1.5.1",null,null,"Показатель наличия удостоверений о проверке знаний работников эксплуатирующей организации или записей журнала проверки знаний, протоколов проверки знаний, удостоверений о проверке знаний или журнала проверки знаний Правил технической эксплуатации электроустановок потребителей",0.5,"Кпров зн не ОПО",1,"В случае эксплуатации объектов, не являющихся ОПО, необходимо выбрать одно значение, в зависимости от следующих условий:\nналичие – 1;\nотсутствие – 0.\nЕсли объекты, не являющиеся ОПО, не эксплуатируются, значение принимается равным 1.\nДля источников тепловой энергии, функционирующих в режиме комбинированной выработки электрической и тепловой энергии, порядок проведения оценки готовности к работе в отопительный период которых установлен Правилами оценки готовности субъектов электроэнергетики к работе в отопительный сезон, утвержденными постановлением Правительства Российской Федерации от 10.05.2017 № 543 (далее – Правила оценки готовности субъектов электроэнергетики к работе в отопительный сезон), показатель готовности принимается равным 1.\nВ случае оценки обеспечения готовности прочих источников тепловой энергии, функционирующих в режиме комбинированной выработки электрической и тепловой энергии, оценка производится в следующем порядке:\nналичие – 1;\nотсутствие – 0.\n\n\n\n"]
["1.1.5.2",null,null,"Показатель наличия удостоверений\nо допуске к самостоятельной работе обслуживающего персонала или протоколов проверки знаний в области промышленной безопасности работников и руководителей, предусмотренных Правилами промышленной безопасности, в случае эксплуатации ОПО\n\n",0.5,"Кпров зн ОПО",1,"В случае эксплуатации ОПО необходимо выбрать одно значение в зависимости от следующих условий:\nналичие – 1;\nотсутствие – 0.\nЕсли ОПО не эксплуатируются, значение принимается равным 1.\n\n\n"]
["1.1.6",null,"Копии документов, подтверждающих проведение обучения работников действиям в случае аварии или инцидента на опасном производственном объекте, в соответствии со статьей 10 Федерального закона от 21 июля 1997 г. № 116-ФЗ «О промышленной безопасности опасных производственных объектов» (далее – Федеральный закон о промышленной безопасности)\n(подпункт 9.3.7 пункта 9 Правил)","Показатель наличия документов, подтверждающих проведение обучения работников действиям в случае аварии или инцидента на опасном производственном объекте",0.1,"Кобуч",1,"Необходимо выбрать одно значение, в зависимости от следующих условий:\nналичие – 1;\nотсутствие – 0.\n\nВ случае, если ОПО не эксплуатируются, то Кобуч принимается равным 1. \n\n\n"]
["1.1.7",null,"Организационно-распорядительные документы организации о назначении ответственных лиц за безопасную эксплуатацию тепловых энергоустановок для объектов, не отнесенных к ОПО, определенные пунктами 2.1.2, 2.1.3 Правил технической эксплуатации тепловых энергоустановок, и (или) ответственных лиц за безопасную эксплуатацию оборудования, работающего под избыточным давлением, и ответственных за осуществление производственного контроля при эксплуатации оборудования, отнесенного к ОПО, определенные пунктом 228 Правил промышленной безопасности\n(подпункт 9.3.8 пункта 9 Правил)\n\n","Показатель наличия организационно-распорядительных документов организации о назначении ответственных лиц за тепловые энергоустановки\nи (или) ответственных лиц за безопасную эксплуатацию оборудования под давлением и ответственных за осуществление производственного контроля при эксплуатации оборудования на ОПО\n\n",0.1,"Котв",{"$f":"IF(OR(G17=0,G18=0),0,E17*G17+E18*G18)","v":1},"Котв = Котв неОПО*0,5+ Котв ОПО*0,5\n\nЕсли в отношении объекта оценки какой-либо из показателей, указанных в подпунктах 1.1.7.1, 1.1.7.2 настоящего оценочного листа не применим (не подлежит оценке), то расчет показателя готовности в соответствии с настоящим пунктом осуществляется в части критерия, применимого к оценке, при этом показатель определяется по принципу: \nналичие – 1; \nотсутствие – 0.\n\n\n\n"]
["1.1.7.1",null,null,"Показатель наличия организационно-распорядительных документов организации о назначении ответственных лиц за безопасную эксплуатацию тепловых энергоустановок для объектов, не отнесенных к ОПО",0.5,"Котв неОПО",1,"В случае эксплуатации объектов, не являющихся ОПО, необходимо выбрать одно значение, в зависимости от следующих условий:\nналичие – 1;\nотсутствие – 0.\nЕсли объекты, не являющиеся ОПО, не эксплуатируются, значение принимается равным 1\nДля источников тепловой энергии, функционирующих в режиме комбинированной выработки электрической и тепловой энергии, порядок проведения оценки готовности к работе в отопительный период которых установлен Правилами оценки готовности субъектов электроэнергетики к работе в отопительный сезон, показатель готовности принимается равным 1.\nВ случае оценки обеспечения готовности прочих источников тепловой энергии, функционирующих в режиме комбинированной выработки электрической и тепловой энергии, оценка производится в следующем порядке:\nналичие – 1;\nотсутствие – 0.\n\n"]
["1.1.7.2",null,null,"Показатель наличия организационно-распорядительных документов организации о назначении ответственных лиц за безопасную эксплуатацию оборудования под давлением и ответственных за осуществление производственного контроля при эксплуатации оборудования на ОПО\n",0.5,"Котв ОПО",1,"В случае эксплуатации ОПО необходимо выбрать одно значение в зависимости от следующих условий:\nналичие – 1;\nотсутствие – 0.\nЕсли ОПО не эксплуатируются, значение принимается равным 1.\n\n"]
["1.1.8",null,"Утвержденные инструкции по охране труда, утвержденный порядок производства работ повышенной опасности и оформления наряда-допуска, утвержденный перечень работ, выполняемых по нарядам-допускам в соответствии\nс требованиями Правил по охране труда при эксплуатации объектов теплоснабжения и теплопотребляющих установок, утвержденных приказом Минтруда России от 17 декабря \n2020 г. № 924н  \n(подпункт 9.3.9 пункта 9 Правил)\n","Показатель наличия утвержденных инструкций по охране труда, утвержденных порядков производства работ повышенной опасности и оформлений нарядов-допусков, утвержденного перечня работ, выполняемых по нарядам-допускам ",0.15,"Кохр.труда",1,"Необходимо выбрать одно значение, в зависимости от следующих условий:\nналичие – 1;\nотсутствие – 0\n\n\n"]
["1.1.9",null,"Копии утвержденных в соответствии с пунктом 2.3.48 Правил технической эксплуатации тепловых энергоустановок и с пунктом 236 Правил промышленной безопасности, программ противоаварийных тренировок, журналов, подтверждающих проведение тренировок согласно утвержденной программе противоаварийных тренировок\n(подпункт 9.3.10 пункта 9 Правил)","Показатель наличия программ противоаварийных тренировок, журналов, подтверждающих проведение тренировок согласно утвержденной программе противоаварийных тренировок",0.15,"Ктрен",1,"Необходимо выбрать одно значение, в зависимости от следующих условий:\nналичие – 1;\nотсутствие – 0\n\n\n\n"]
["1.2","Проводить наладку принадлежащих им тепловых сетей (пункт 2 части 4 статьи 20 Федерального закона о теплоснабжении) и осуществлять контроль за режимами потребления тепловой энергии (пункт 3 части 4 статьи 20 Федерального закона о теплоснабжении)","Документы, предусмотренные подпунктами 9.3.11 и 9.3.22 пункта 9 Правил","Показатель проведения наладки тепловых сетей и контроля за режимами потребления тепловой энергии",0.01,"Крежим.налад",{"$f":"E22*G22+E23*G23","v":1},"Расчет осуществляется автоматически по формуле:\nКрежим.налад=Ктемп.граф*0,5+Крежим.карт*0,5\n"]
["1.2.1",null,"Разработанные и утвержденные в установленном порядке температурные графики, гидравлические режимы работы системы теплоснабжения на предстоящий отопительный период, разработанные в соответствии с пунктом 6.2.1 Правил технической эксплуатации тепловых энергоустановок, а также копии эксплуатационных инструкций по ведению и контролю режимов работы системы теплоснабжения (подпункт 9.3.11 пункта 9 Правил)\n","Показатель наличия температурных графиков, гидравлических режимов работы системы теплоснабжения ",0.5,"Ктемп.граф",1,"Необходимо выбрать одно значение, в зависимости от следующих условий:\nналичие – 1;\nотсутствие – 0\n\n"]
["1.2.2",null,"Технические отчеты о проведении режимно-наладочных испытаний объектов теплоснабжения, утвержденные режимные карты, требования к которым установлены пунктами 2.5.4, 2.8.1, 5.3.6, 9.3.25, 12.11 Правил технической эксплуатации тепловых энергоустановок\n(пункт 9.3.22 пункта 9 Правил)\n","Показатель наличия технических отчетов о проведении режимно-наладочных испытаний объектов теплоснабжения, утвержденных режимных карт  ",0.5,"Крежим.карт",1,"Необходимо выбрать одно значение, в зависимости от следующих условий:\nналичие – 1;\nотсутствие – 0\n\n"]
["1.3","Обеспечивать качество теплоносителей \n(пункт 4 части 4 статьи 20 Федерального закона о теплоснабжении)\n\n","Копии утвержденной инструкции по эксплуатации установок для докотловой обработки воды (если предусмотрены проектной документацией объектов теплоснабжения) и инструкции по ведению водно-химического режима, включающей режимные карты, утвержденный график химконтроля за водно-химическим режимом котельных и тепловых сетей, разработанный в соответствии с требованиями пункта 12.9 Правил технической эксплуатации тепловых энергоустановок, пункта 278 Правил промышленной безопасности \n(подпункт 9.3.12 пункта 9 Правил)","Показатель обеспечения качества теплоносителей",0.01,"Ккачест",1,"Необходимо выбрать одно значение, в зависимости от следующих условий:\nналичие – 1;\nотсутствие – 0\n\n\n"]
["1.4","Обеспечивать проверку качества строительства, реконструкции и (или) модернизации принадлежащих теплоснабжающим, теплосетевым организациям тепловых сетей, в том числе качества тепловой изоляции (пункт 6 части 4 статьи 20 Федерального закона о теплоснабжении)","Разработанный в соответствии с пунктом 2.7.10 Правил технической эксплуатации тепловых энергоустановок нормативно-технический документ\nоб организации ремонтного производства, разработке ремонтной документации, планированию и подготовке к ремонту, выводу в ремонт и производству ремонта, а также приемке и оценке качества ремонта, а также акты приемки объектов теплоснабжения и теплопотребляющих установок из ремонта с приложением дефектных ведомостей (при наличии), протоколов испытаний и наладки, предусмотренные пунктом 2.7.13 Правил технической эксплуатации тепловых энергоустановок – в случае эксплуатации объектов, не являющихся ОПО, и (или) копии удостоверений (свидетельств) о качестве монтажа в случае выполнения мероприятий по строительству, реконструкции и (или) модернизации тепловых сетей – в случае эксплуатации ОПО.\n(подпункт 9.3.14 пункта 9 Правил)\n","Показатель наличия нормативно-технического документа по организации ремонтного производства, разработке ремонтной документации, планированию и подготовке к ремонту, выводу в ремонт и производству ремонта, а также приемке и оценке качества ремонта",0.3,"Ккач.строит",1,"Необходимо выбрать одно значение, в зависимости от следующих условий:\nналичие – 1;\nотсутствие – 0.\n\nЗначение Иэкс-тсо не может быть более 0,8 в случае, если данный показатель равен 0."]
["1.5","Обеспечивать надежное теплоснабжение потребителей (пункт 7 части 4 статьи 20 Федерального закона о теплоснабжении)\n\n","Документы, предусмотренные подпунктами 9.3.15, 9.3.16, 9.3.18 – 9.3.28 Правил","Показатель обеспечения надежного теплоснабжения потребителей",0.62,"Кнадеж",{"$f":"E27*G27+E30*G30+E31*G31+E32*G32+E33*G33+E34*G34+E35*G35+E36*G36+E37*G37+E39*G39","v":1},"Расчет осуществляется автоматически по формуле:\nКнадеж=Косвид*0,01+Кобслед*0,05+\nКиспыт*0,05+Кгидр*0,4+Кшурф*0,02+\nКочист.промыв*0,4+Кэлектр.сопр*0,01+\nКнасос стан*0,01+Кматер*0,04+Кстрах*0,01\n\n\n"]
["1.5.1",null,"Копии паспортов паровых и (или) водогрейных котельных установок, центральных тепловых пунктов\nи оборудования, работающего под избыточным давлением, с отметками:\nо проведении технических освидетельствований, актов о проведении гидравлических испытаний с выводами об отсутствии выявленных дефектов, запрещающих эксплуатацию. Для оборудования, отработавшего установленный в технической документации организации–изготовителя или проектной документации срок службы, или при превышении количества циклов его нагрузки – сведения о зарегистрированных федеральным органом исполнительной власти в области промышленной безопасности заключениях экспертизы промышленной безопасности (для ОПО) в соответствии с частью 2 статьи 7 Федерального закона о промышленной безопасности и заключениях о проведении технического диагностирования (для объектов, не являющихся ОПО) с выводами о продлении срока эксплуатации оборудования в соответствии с пунктом 13.2 Правил технической эксплуатации тепловых энергоустановок; о проверке плотности (герметичности), настройки и регулировки предохранительных клапанов\n(подпункт 9.3.15 пункта 9 Правил)\n\n\n\n","Показатель наличия паспортов паровых и (или) водогрейных котельных установок, центральных тепловых пунктов\nи оборудования, работающего под избыточным давлением с выводами о продлении срока эксплуатации оборудования\n",0.01,"Косвид",{"$f":"IF(OR(G28=0,G29=0),0,E28*G28+E29*G29)","v":1},"Расчет осуществляется автоматически по формуле:\nКосвид= Косвид не ОПО*0,5+Косвид ОПО*0,5\n\nЕсли в отношении объекта оценки какой-либо из показателей, указанных в подпунктах 1.5.1.1, 1.5.1.2 настоящего оценочного листа не применим (не подлежит оценке), то расчет показателя готовности в соответствии с настоящим пунктом осуществляется в части критерия, применимого к оценке, при этом показатель определяется по принципу: \nналичие – 1; \nотсутствие – 0.\n"]
["1.5.1.1",null,null,"Показатель наличия отметок в паспорте оборудования, не являющегося ОПО, о проведенном техническом освидетельствовании, гидравлическом испытании, техническом диагностировании, настройки предохранительных клапанов с выводами о продлении срока эксплуатации оборудования",0.5,"Косвид не ОПО",1,"В случае эксплуатации объектов, не являющихся ОПО, необходимо выбрать одно значение, в зависимости от следующих условий:\nналичие – 1;\nотсутствие – 0.\nЕсли объекты, не являющиеся ОПО, не эксплуатируются, значение принимается равным 1.\n\nДля источников тепловой энергии, функционирующих в режиме комбинированной выработки электрической и тепловой энергии, порядок проведения оценки готовности к работе в отопительный период которых установлен Правилами оценки готовности субъектов электроэнергетики к работе в отопительный сезон, показатель готовности принимается равным 1.\nВ случае оценки обеспечения готовности прочих источников тепловой энергии, функционирующих в режиме комбинированной выработки электрической и тепловой энергии, оценка производится в следующем порядке:\nналичие – 1;\nотсутствие – 0. "]
["1.5.1.2",null,null,"Показатель наличия отметок в паспорте оборудования о проведенных техническом освидетельствовании, гидравлическом испытании, экспертизы промышленной безопасности, настройки и регулировки предохранительных клапанов с выводами о продлении срока эксплуатации оборудования",0.5,"Косвид ОПО",1,"В случае эксплуатации ОПО необходимо выбрать одно значение в зависимости от следующих условий:\nналичие – 1;\nотсутствие – 0.\nЕсли ОПО не эксплуатируются, значение принимается равным 1.\n\n\n"]
["1.5.2",null,"Копии актов комплексного обследования, очередных и внеочередных осмотров зданий и сооружений объектов теплоснабжения, журналов, паспортов зданий и сооружений, определенных перечнем документации эксплуатирующей организации, в которые занесены результаты текущих осмотров в соответствии с пунктом 3.1.3 Правил технической эксплуатации тепловых энергоустановок \n(подпункт 9.3.16 пункта 9 Правил)\n\n","Показатель наличия актов комплексного обследования, очередных и внеочередных осмотров зданий и сооружений объектов теплоснабжения, журналов, паспортов зданий и сооружений, определенных перечнем документации эксплуатирующей организации, в которые занесены результаты текущих осмотров",0.05,"Кобслед",1,"Необходимо выбрать одно значение, в зависимости от следующих условий:\nналичие – 1;\nотсутствие – 0\n\n"]
["1.5.3",null,"Акты (технические отчеты) о проведении испытаний тепловых сетей (в соответствии с графиком проведения испытаний, утвержденным руководителем (техническим руководителем) организации) на максимальную температуру, о проведении испытаний по определению тепловых потерь через тепловую изоляцию, о проведении испытания по определению гидравлических потерь трубопроводов водяных тепловых сетей в сроки, установленные пунктом 6.2.32 Правил технической эксплуатации тепловых энергоустановок \n(подпункт 9.3.18 пункта 9 Правил)\n","Показатель наличия актов (технических отчетов) о проведении испытаний тепловых сетей (в соответствии \nс графиком проведения испытаний, утвержденным руководителем (техническим руководителем) организации) на максимальную температуру, о проведении испытаний по определению тепловых потерь через тепловую изоляцию, \nо проведении испытания по определению гидравлических потерь трубопроводов водяных тепловых сетей",0.05,"Киспыт",1,"Необходимо выбрать одно значение, в зависимости от следующих условий:\nналичие – 1;\nотсутствие – 0\n\n\n\n"]
["1.5.4",null,"Акты проведения гидравлических испытаний на прочность и плотность трубопроводов тепловых сетей в соответствии с пунктом 6.2.16 Правил технической эксплуатации тепловых энергоустановок \n(подпункт 9.3.19 пункта 9 Правил)\n","Показатель наличия актов проведения гидравлических испытаний на прочность и плотность ",0.4,"Кгидр",1,"Необходимо выбрать одно значение, в зависимости от следующих условий:\nналичие – 1;\nотсутствие – 0\n\nЗначение индекса готовности Иэкс-тсо не может быть более 0,8 в случае, если данный показатель равен 0. \n"]
["1.5.5",null,"Документы, подтверждающие проведение мероприятий по контролю за состоянием подземных трубопроводов тепловой сети (за исключением неметаллических), проложенных в непроходных каналах, и при бесканальной прокладке, требования к проведению которых установлены пунктами 6.2.34 – 6.2.37 Правил технической эксплуатации тепловых энергоустановок \n(подпункт 9.3.20 пункта 9 Правил)\n","Показатель наличия документов, подтверждающих проведение мероприятий по контролю за состоянием подземных трубопроводов тепловой сети (за исключением неметаллических), проложенных в непроходных каналах, и при бесканальной прокладке\n",0.02,"Кшурф",1,"Необходимо выбрать одно значение, в зависимости от следующих условий:\nналичие – 1;\nотсутствие – 0.\n\n\n\n"]
["1.5.6",null,"Акты о проведении очистки и промывки тепловых сетей, тепловых пунктов, требования к которым установлены пунктами 5.3.37, 6.2.17, 12.18 Правил технической эксплуатации тепловых энергоустановок. (подпункт 9.3.21 пункта 9 Правил)","Показатель наличия актов о проведении очистки и тепловых сетей, тепловых пунктов ",0.4,"Кочист.промыв",1,"Необходимо выбрать одно значение, в зависимости от следующих условий:\nналичие – 1;\nотсутствие – 0.\n\nЗначение индекса готовности Иэкс-тсо не может быть более 0,8 в случае, если данный показатель равен 0. "]
["1.5.7",null,"Акт измерений удельного электрического сопротивления грунта и потенциалов блуждающих токов в соответствии с требованиями пункта 6.2.43 Правил технической эксплуатации тепловых энергоустановок \n(подпункт 9.3.23 Пункта 9 Правил)\n\n\n","Показатель наличия актов измерений удельного электрического сопротивления грунта и потенциалов блуждающих токов",0.01,"Кэлектр.сопр",1,"Необходимо выбрать одно значение, в зависимости от следующих условий:\nналичие – 1;\nотсутствие – 0.\n\n\n"]
["1.5.8",null,"Акт опробования работоспособности оборудования насосных станций, проведение которого установлено требованиями пункта 6.2.48 Правил технической эксплуатации тепловых энергоустановок \n(подпункт 9.3.24 Пункта 9 Правил)","Показатель наличия акта опробования работоспособности оборудования насосных станций",0.01,"Кнасос.стан",1,"Необходимо выбрать одно значение, в зависимости от следующих условий:\nналичие – 1;\nотсутствие – 0\n\n"]
["1.5.9",null,"Утвержденный в соответствии с требованиями пункта 2.7.3 Правил технической эксплуатации тепловых энергоустановок перечень запасов материалов, запорной арматуры, запасных частей, средств механизации для выполнения срочных внеплановых (аварийных) ремонтных работ, результаты последней проведенной инвентаризации запасов материалов, запорной арматуры, запасных частей, средств механизации для выполнения срочных внеплановых (аварийных) ремонтных работ, оформленные в соответствии с требованиями Положения по ведению бухгалтерского учета и бухгалтерской отчетности в Российской Федерации, утвержденного приказом Минфина России от 29 июля 1998 г. № 34н  (подпункт 9.3.26 Пункта 9 Правил)\n","Показатель наличия запасов материалов, запорной арматуры, запасных частей, средств механизации",0.04,"Кматер",{"$f":"G38/100","v":1},"Расчет осуществляется автоматически по формуле:\nКматер=% наличия запас мат факт по инвентар/100"]
["1.5.9.1",{"$nulls":3},"– ","% наличия запас мат факт по инвентар",100,"Фактическое значение наличия материальных запасов по инвентаризации, выраженное в процентах от необходимого."]
["1.5.10",null,"В соответствии с требованиями части 1 статьи 9 Федерального закона о промышленной безопасности копия лицензии или выписки из реестра лицензий Ростехнадзора, копия договора обязательного страхования гражданской ответственности, заключенного в соответствии с законодательством Российской Федерации об обязательном страховании гражданской ответственности владельца опасного объекта за причинение вреда в результате аварии на опасном объекте. Требование не распространяется на объекты теплоснабжения организаций, подведомственных федеральным органам исполнительной власти в сфере обороны, обеспечения безопасности, государственной охраны, внешней разведки, мобилизационной подготовки и мобилизации\n(подпункт 9.3.27 пункта 9 Правил)","Показатель наличия лицензии Ростехнадзора и договора обязательного страхования гражданской ответственности",0.01,"Кстрах",1,"Необходимо выбрать одно значение, в зависимости от следующих условий:\nналичие – 1;\nотсутствие – 0.\n\nВ случае эксплуатации только объектов, не являющиеся ОПО, значение принимается равным 1.\n\n"]
["1.6","Иметь согласованный с органом местного самоуправления порядок (план) действий по ликвидации последствий аварийных ситуаций в сфере теплоснабжения (пункт 9 части 4 статьи 20 Федерального закона о теплоснабжении)","Утвержденный в соответствии с требованиями пункта 15.4.3 Правил технической эксплуатации тепловых энергоустановок и (или) Положения о разработке планов мероприятий по локализации и ликвидации последствий аварий на опасных производственных объектах, утвержденного постановлением Правительства Российской Федерации \nот 15 сентября 2020 г. № 1437 , порядок (план) действий по ликвидации последствий аварийных ситуаций в сфере теплоснабжения или предусмотренные пунктом 386 Правил промышленной безопасности, инструкции, устанавливающие действия работников в аварийных ситуациях (в том числе при аварии).\n(подпункт 9.3.28 пункта 9 Правил)\n","Показатель наличия порядка (плана) действий по ликвидации последствий аварийных ситуаций в сфере теплоснабжения",0.01,"Кпорядок",1,"Необходимо выбрать одно значение, в зависимости от следующих условий:\nналичие – 1;\nотсутствие – 0\n\n"]
["2","Обеспечить выполнение в установленные сроки предписаний, влияющих на надежность работы в отопительный период, выданных федеральным органом исполнительной власти государственного энергетического надзора, федерального государственного надзора в области промышленной безопасности, федеральными органами исполнительной власти в сфере обороны, обеспечения безопасности, государственной охраны, внешней разведки, мобилизационной подготовки и мобилизации, исполнения наказаний (их подразделениями) (в случаях, предусмотренных пунктом 2 части 1 статьи 41 Федерального закона о теплоснабжении и абзацем вторым пункта 2 статьи 5 Федерального закона о промышленной безопасности, об устранении нарушений требований пунктов 2.3.14, 2.3.15, 2.8.1, \n3.3.4 – 3.3.8, 4.1.1, 5.3.6, 5.3.26, 5.3.31, 5.3.32, 5.3.52, 6.2.16, 6.2.26, 6.2.32, 6.2.48, 6.2.52, 6.2.60, 6.2.62, 8.2.1 – 8.2.5, 8.2.12, 8.2.13, 10.1.9, 11.1, 11.2, 11.5, 15.1.5 – 15.1.7 Правил технической эксплуатации тепловых энергоустановок и пунктов 394, \n396 – 399, 403 Правил промышленной безопасности\n(подпункт 9.2 пункта 9 Правил)\n\n","Справка об отсутствии невыполненных в установленные сроки предписаний об устранении нарушений требований пунктов 2.3.14, 2.3.15, 2.8.1, \n3.3.4 – 3.3.8, 4.1.1, 5.3.6, 5.3.26, 5.3.31, 5.3.32, 5.3.52, 6.2.16, 6.2.26, 6.2.32, 6.2.48, 6.2.52, 6.2.60, 6.2.62, \n8.2.1 – 8.2.5, 8.2.12, 8.2.13, 10.1.9, 11.1, 11.2, 11.5, \n15.1.5 – 15.1.7  Правил технической эксплуатации тепловых энергоустановок и пунктов 394, 396 – 399, 403 Правил промышленной безопасности при использовании оборудования, работающего под избыточным давлением, влияющих на надежность работы в отопительный период, выданных федеральным органом исполнительной власти государственного энергетического надзора, федерального государственного надзора в области промышленной безопасности, федеральными органами исполнительной власти в сфере обороны, обеспечения безопасности, государственной охраны, внешней разведки, мобилизационной подготовки и мобилизации, исполнения наказаний (их подразделениями) (в случаях, предусмотренных пунктом 2 части 1 статьи 4.1 Федерального закона о теплоснабжении и абзацем вторым пункта 2 статьи 5 Федерального закона о промышленной безопасности) \n(подпункт 9.2 пункта 9 Правил)\n\n","Показатель выполнения предписаний, влияющих на надежность работы в отопительный период",0.05,"Кпредп",1,"Необходимо выбрать одно значение, в зависимости от следующих условий:\nналичие – 1;\nотсутствие – 0\n\n"]
["3","Обеспечить выполнение плана подготовки к отопительному периоду, предусмотренного пунктом 3 настоящих Правил (пункт 10 Правил)","План подготовки к отопительному периоду \n(пункт 3 Правил)\n","Показатель наличия утвержденного плана подготовки к отопительному периоду",0.05,"Кплан",1,"Необходимо выбрать одно значение, в зависимости от следующих условий:\nналичие – 1;\nотсутствие – 0\n"]

{"sheet":"Приложение № 4","index":3,"n_rows":32,"n_cols":8,"rows_kept":32,"merged":[[0,0,0,7],[2,3,2,5],[4,1,14,1],[15,1,17,1],[18,1,20,1],[21,1,23,1],[24,1,26,1],[27,1,29,1],[27,2,29,2]]}
["Образец расчета индекса готовности к отопительному периоду потребителей тепловой энергии, теплопотребляющие установки которых подключены (технологически присоединены) к системе теплоснабжения, приобретающих тепловую энергию (мощность), теплоноситель для использования на принадлежащих им на праве собственности или ином законном основании теплопотребляющих установках, управляющих организаций, а также товариществ собственников жилья, жилищных кооперативов, жилищно-строительных кооперативов или иных специализированных потребительских кооперативов при условии осуществления ими деятельности по управлению многоквартирными домами, а также лиц, с которыми в соответствии с частью 1 статьи 164 Жилищного кодекса Российской Федерации собственниками помещений в многоквартирном доме заключены договоры оказания услуг по содержанию и (или) выполнению работ по ремонту общего имущества в целях надлежащего содержания и (или) ремонта внутридомовой системы отопления в многоквартирном доме, или председателя совета многоквартирного дома в случае, если собственниками помещений в многоквартирном доме не принято решение о заключении таких договоров, или муниципальными образованиями в случае, если способ управления многоквартирным домом не выбран или выбранный способ управления не реализован\nжелтые ячейки - значения расчитываются автоматически, запрещено вносить изменения; \nзеленые ячейки - выбор значений 0 или 1"]
["№ п/п","Обязательное требование","Подтверждающий документ","Показатель","Вес показателя","Наименование показателя","Расчет показателей готовности (рабочие формулы и ячейки для заполненния)","Примечания к расчетам показателей готовности "]
[{"$nulls":3},"ИНДЕКС ГОТОВНОСТИ",null,null,{"$f":"E4*G4+E25*G25+E28*G28+E32*G32+E31*G31","v":1},"Расчет осуществляется автоматически по формуле:\nИпотр=Кзакон о тепл*0,85+ Кжил.фонд*0,06 +Кгаз*0,02+Кпредп*0,05+Кплан*0,02\n"]
[1,"Выполнить требования, установленные частью 6 статьи 20 Федерального закона от 27 июля 2010 г. № 190-ФЗ «О теплоснабжении» (далее – Федеральный закон о теплоснабжении)\n(подпункт 11.1 пункта 11 Правил обеспечения готовности к отопительному периоду, утвержденных приказом Минэнерго России от 13 ноября 2024 г. № 2234 (далее – Правила):"," – ","Показатель выполнения требований Федерального \nзакона о теплоснабжении",0.85,"Кзакон о тепл",{"$f":"E5*G5+E16*G16+E19*G19+E22*G22","v":1},"Расчет осуществляется автоматически по формуле:\nКзакон о тепл=Кбезопасн*0,8+Крежим*0,03+\nКзадолж*0,15+Кучет*0,02"]
["1.1","Обеспечивать эксплуатацию теплопотребляющих установок в соответствии с требованиями безопасности в сфере теплоснабжения, установленными статьей 23.2  Федерального закона о теплоснабжении (пункт 1 части 6 статьи 20 Федерального закона о теплоснабжении)","Документы, предусмотренные подпунктами 11.5.1 – 11.5.10 пункта 11 Правил ","Показатель обеспечения эксплуатации теплопотребляющих установок в соответствии с требованиями безопасности",0.8,"Кбезопасн",{"$f":"E6*G6+E7*G7+E8*G8+E9*G9+E10*G10+E11*G11+E12*G12+E13*G13+E14*G14+E15*G15","v":1},"Расчет осуществляется автоматически по формуле:\nКбезопасн=Кпромыв*0,31+Кгидр*0,31+Карм*0,01+\nКотв*0,01+Киспыт*0,31+Кперечень*0,01+\nКэкспл/произв.инстр*0,01+Кпаспорт.тепл.пункт*0,01+Кшт*0,01+\nКрегул.темпер*0,01\n"]
["1.1.1",null,"Акты промывки теплопотребляющей установки, проведенной в присутствии представителя единой теплоснабжающей организации, в зону (зоны) деятельности которой входит система (системы) теплоснабжения, установленные требованиями пункта 9.2.9 Правил технической эксплуатации тепловых энергоустановок, утвержденных приказом Минэнерго России от 24 марта 2003 г. № 115  (далее – Правила технической эксплуатации тепловых энергоустановок)\n(подпункт 11.5.1 пункта 11 Правил)\n","Показатель наличия акта промывки теплопотребляющей установки ",0.31,"Кпромыв",1,"Необходимо выбрать одно значение, в зависимости от следующих условий:\nналичие – 1;\nотсутствие – 0\n\nЗначение индекса готовности Ипотр не может быть более 0,8 в случае, если данный показатель равен 0. \n\n\n"]
["1.1.2",null,"Акты о проведении наладки режимов потребления тепловой энергии и (или) теплоносителя (в том числе тепловых и гидравлических режимов) теплового пункта, внутридомовых сетей и теплопотребляющих установок, актов об установке и пломбировании дроссельных (ограничительных) устройств во внутренних системах, включая элеваторы и шайбы на линиях рециркуляции горячего водоснабжения в соответствии с пунктом 9.3.25 Правил технической эксплуатации тепловых энергоустановок \n(подпункт 11.5.2 пункта 11 Правил)\n\n","Показатель наличия актов о проведении наладки режимов потребления тепловой энергии и (или) теплоносителя ",0.31,"Кгидр",1,"Необходимо выбрать одно значение, в зависимости от следующих условий:\nналичие – 1;\nотсутствие – 0\n\nЗначение индекса готовности Ипотр не может быть более 0,8 в случае, если данный показатель равен 0. \n\n\n"]
["1.1.3",null,"Акт проверки (осмотра) запорной арматуры, в том числе в высших (воздушники) и низших точках трубопровода (спускники) и арматуры постоянного регулирования на предмет наличия и \nработоспособности, плотности (герметичности) сальниковых уплотнений, наличия теплоизоляции в соответствии с проектными решениями, наличия соответствующих неповрежденных пломб, установленных теплоснабжающими и теплосетевыми организациями \n(подпункт 11.5.3 пункта 11 Правил)\n","Показатель наличия акта проверки (осмотра) запорной арматуры и арматуры постоянного регулирования",0.01,"Карм",1,"Необходимо выбрать одно значение, в зависимости от следующих условий:\nналичие – 1;\nотсутствие – 0\n\n\n\n"]
["1.1.4",null,"Установленные пунктами 2.1.2, 2.1.3 Правил технической эксплуатации тепловых энергоустановок организационно-распорядительные документы организации о назначении ответственных лиц за безопасную эксплуатацию тепловых энергоустановок для объектов и (или) установленные пунктом 228 Правил промышленной безопасности при использовании оборудования, работающего под избыточным давлением, утвержденных приказом Ростехнадзора от 15 декабря 2020 г. № 536  (далее – Правила промышленной безопасности), ответственных лиц за безопасную эксплуатацию оборудования под давлением и ответственных за осуществление производственного контроля при эксплуатации оборудования на опасных производственных объектах (далее – ОПО)\n(подпункт 11.5.4 пункта 11 Правил)","Показатель назначения ответственных лиц за безопасную эксплуатацию тепловых энергоустановок",0.01,"Котв",1,"Необходимо выбрать одно значение, в зависимости от следующих условий:\nналичие – 1;\nотсутствие – 0\n\n\n\n"]
["1.1.5",null,"Акты о проведении испытаний на плотность и прочность (гидравлических испытаний) тепловых энергоустановок, включая трубопроводы тепловых сетей (при наличии) и участков тепловых вводов (до вводной запорной арматуры) в границах балансовой принадлежности, оборудования индивидуальных тепловых пунктов и внутренних систем теплопотребления в соответствии\nс требованиями пунктов 9.8, 9.1.59 Правил технической эксплуатации тепловых энергоустановок и наличие записей о результатах проведенных испытаний в паспорте теплового пункта  и (или) теплопотребляющих установок \n(подпункт 11.5.5 пункта 11 Правил)\n\n","Показатель наличия актов о проведении испытаний на плотность и прочность (гидравлических испытаний) тепловых энергоустановок, включая трубопроводы тепловых сетей (при наличии) и участков тепловых вводов",0.31,"Киспыт",1,"Необходимо выбрать одно значение, в зависимости от следующих условий:\nналичие – 1;\nотсутствие – 0\n\nЗначение индекса готовности Ипотр не может быть более 0,8 в случае, если данный показатель равен 0. \n"]
["1.1.6",null,"Организационно-распорядительные документы об утверждении перечня производственных инструкций для безопасной эксплуатации котлов и вспомогательного оборудования в случае эксплуатации ОПО, разработанного\nв соответствии с пунктом 278 Правил промышленной безопасности, и (или) перечня документации эксплуатирующей организации для объектов, не являющихся ОПО, разработанного в соответствии с пунктом 2.8.2 Правил технической эксплуатации тепловых энергоустановок\n(подпункт 11.5.6 пункта 11 Правил)","Показатель наличия перечня производственных инструкций для безопасной эксплуатации котлов и вспомогательного оборудования в случае эксплуатации ОПО\n\n",0.01,"Кперечень",1,"Необходимо выбрать одно значение, в зависимости от следующих условий:\nналичие – 1;\nотсутствие – 0\n"]
["1.1.7",null,"Утвержденные в соответствии с требованиями пункта 2.2 Правил технической эксплуатации тепловых энергоустановок эксплуатационные инструкции объектов теплоснабжения и (или) производственные инструкции, разработанные в соответствии с пунктом 278 Правил промышленной безопасности \n(подпункт 11.5.7 пункта 11 Правил)\n","Показатель наличия эксплуатационных инструкций объектов теплоснабжения и (или) производственных инструкций",0.01,"Кэкспл/произв.инстр",1,"Необходимо выбрать одно значение, в зависимости от следующих условий:\nналичие – 1;\nотсутствие – 0\n\n"]
["1.1.8",null,"Паспорта тепловых пунктов или копии паспортов тепловых пунктов в соответствии с пунктом 9.1.5 Правил технической эксплуатации тепловых энергоустановок, а также проектно-техническая документация на здание (сооружение) в части внутренних систем теплоснабжения по теплопотребляющим установкам, установленным в здании (сооружении) \n(подпункт 11.5.8 пункта 11 Правил)\n","Показатель наличия паспортов тепловых пунктов и проектно-технической документации на здание в части внутренних систем теплоснабжения по теплопотребляющим установкам",0.01,"Кпаспорт.тепл.пункт",1,"Необходимо выбрать одно значение, в зависимости от следующих условий:\nналичие – 1;\nотсутствие – 0\n\n"]
["1.1.9",null,"Выписка из утвержденного штатного расписания, подтверждающая наличие персонала, осуществляющего функции эксплуатационной, диспетчерской и аварийной служб или договоры на техническое обслуживание, энергосервисные контракты в случае привлечения специализированных организаций для эксплуатации оборудования\n(подпункт 11.5.9 пункта 11 Правил)\n\n","Показатель наличия персонала, осуществляющего функции эксплуатационной, диспетчерской и аварийной служб или договоров на техническое обслуживание, энергосервисных контрактов",0.01,"Кшт",1,"Необходимо выбрать одно значение, в зависимости от следующих условий:\nналичие – 1;\nотсутствие – 0\n\n"]
["1.1.10",null,"Акты или документы, подтверждающие проверку работоспособности автоматических регуляторов температуры воды, подаваемой в системы горячего водоснабжения, а также проверку настроечных характеристик и установок систем регулирования и (или) регуляторов температуры и давления теплоносителя на системы отопления и воды на системы горячего водоснабжения, ограничения расхода сетевой воды через тепловой пункт в соответствии с пунктами 9.3.22, 9.4.18 Правил технической эксплуатации тепловых энергоустановок\n(подпункт 11.5.10 пункта 11 Правил)\n","Показатель наличия актов или документов, подтверждающих работоспособность автоматических регуляторов температуры воды",0.01,"Крегул.темпер",1,"Необходимо выбрать одно значение, в зависимости от следующих условий:\nналичие – 1;\nотсутствие – 0\n"]
["1.2","Обеспечивать готовность к соблюдению указанного в договоре теплоснабжения режима потребления тепловой энергии \n(пункт 2 части 6 статьи 20 Федерального закона о теплоснабжении)","Документы, предусмотренные подпунктами 11.5.11, 11.5.19 пункта 11 Правил","Показатель обеспечения соблюдения указанного в договоре теплоснабжения режима потребления тепловой энергии",0.03,"Крежим",{"$f":"E17*G17+E18*G18","v":1},"Расчет осуществляется автоматически по формуле:\nКрежим=0,5*Кврез+0,5*Ктех.готов"]
["1.2.1",null,"Акты осмотра объектов теплоснабжения и теплопотребляющих установок на предмет наличия несанкционированных врезок для разбора сетевой воды или потребления тепловой энергии на теплопотребляющих энергоустановках, или для переключения закрытой системы теплоснабжения на открытую систему теплоснабжения с разбором сетевой воды или отступлений от проектного решения\n(подпункт 11.5.11 пункта 11 Правил)\n","Показатель наличия актов осмотра объектов теплоснабжения и теплопотребляющих установок на предмет наличия несанкционированных врезок ",0.5,"Кврез",1,"Необходимо выбрать одно значение, в зависимости от следующих условий:\nналичие – 1;\nотсутствие – 0\n\n\n"]
["1.2.2",null,"Подписанный представителем теплоснабжающей организации и уполномоченным представителем потребителя тепловой энергии акт проверки технической готовности теплопотребляющей установки объекта к отопительному периоду, составленный по результатам анализа документов и визуального осмотра, с указанием выявленных замечаний, свидетельствующих о несоблюдении потребителем требований безопасной эксплуатации теплопотребляющих установок\nи (или) невыполнении мероприятий, обеспечивающих соблюдение указанного в договоре теплоснабжения или предусмотренного нормативными актами режима потребления тепловой энергии (подпункт 11.5.19 пункта 11 Правил)\n\n","Показатель наличия актов проверки технической готовности теплопотребляющей установки объекта к отопительному периоду",0.5,"Ктех.готов",1,"Необходимо выбрать одно значение, в зависимости от следующих условий:\nналичие – 1;\nотсутствие – 0\n\n\n"]
["1.3","Обеспечивать отсутствие задолженности за поставленные тепловую энергию (мощность), теплоноситель \n(пункт 3 части 6 статьи 20 Федерального закона о теплоснабжении)","Документы, предусмотренные подпунктами 11.5.12, 11.5.13 пункта 11 Правил","Показатель отсутствия задолженности за поставленные тепловую энергию",0.15,"Кзадолж",{"$f":"E20*G20+E21*G21","v":1},"Расчет осуществляется автоматически по формуле:\nКзадолж=Кдоговор*0,05+Ксвер*0,95\n"]
["1.3.1",null,"Копии заключенных договоров теплоснабжения и (или) договоров оказания услуг по поддержанию резервной тепловой мощности \n(подпункт 11.5.12 пункта 11 Правил)\n\n","Показатель наличия заключенных договоров теплоснабжения и (или) договоров оказания услуг по поддержанию резервной тепловой мощности",0.05,"Кдоговор",1,"Необходимо выбрать одно значение, в зависимости от следующих условий:\nналичие – 1;\nотсутствие – 0\n\n\n"]
["1.3.2",null,"Акт сверки расчетов за поставленные тепловую энергию (мощность), теплоноситель, горячую воду, оказание услуг по поддержанию резервной тепловой мощности по состоянию на дату проверки, подтверждающий отсутствие задолженности, либо подписанное сторонами соглашение, подтверждающее урегулирование с теплоснабжающей организацией порядка погашения всей существующей задолженности\n(подпункт 11.5.13 пункта 11 Правил)\n","Показатель отсутствия задолженности либо подписанное сторонами соглашение, подтверждающее урегулирование с теплоснабжающей организацией порядка погашения всей существующей задолженности",0.95,"Ксвер",1,"Необходимо выбрать одно значение, в зависимости от следующих условий:\nналичие – 1;\nотсутствие – 0\n\n\n\n"]
["1.4","Организовывать коммерческий учет тепловой энергии, теплоносителя в соответствии с требованиями, установленными статьей 19 Закона о теплоснабжении (пункт 4 части 6 статьи 20 Федерального закона о теплоснабжении)","Документы, предусмотренные подпунктами 11.5.14, 11.5.15 пункта 11 Правил","Показатель организации коммерческого учета тепловой энергии, теплоносителя",0.02,"Кучет",{"$f":"E23*G23+E24*G24","v":1},"Расчет осуществляется автоматически по формуле:\nКучет=Кпровер.уз.уч*0,5+Кпровер.кип*0,5\n"]
["1.4.1",null,"Акты периодической проверки узла учета, составленные в соответствии с пунктом 73 Правил коммерческого учета, утвержденных постановлением Правительства Российской Федерации от 18 ноября 2013 № 1034, акты разграничения балансовой принадлежности\n(подпункт 11.5.14 пункта 11 Правил)\n","Показатель наличия акта проверки узла учета ",0.5,"Кпровер.уз.уч",1,"Необходимо выбрать одно значение, в зависимости от следующих условий:\nналичие – 1;\nотсутствие – 0\n\n\n\n\n"]
["1.4.2",null,"Акты проверки контрольно-измерительных приборов в тепловом пункте, с обязательным указанием заводских номеров, отметки о наличии паспортов контрольно-измерительных приборов\n(подпункт 11.5.15 пункта 11 Правил)\n\n","Показатель наличия актов проверки контрольно-измерительных приборов в тепловом пункте",0.5,"Кпровер.кип",1,"Необходимо выбрать одно значение, в зависимости от следующих условий:\nналичие – 1;\nотсутствие – 0\n\n\n\n\n"]
["2","В случае эксплуатации жилищного фонда обеспечить выполнение требований Правил и норм технической эксплуатации жилищного фонда, утвержденных постановлением Госстроя Российской Федерации от 27 сентября 2003 № 170  (далее – Правила и нормы технической эксплуатации жилищного фонда) \n(подпункт 11.2 пункта 11 Правил)","Документы, предусмотренные подпунктами 11.5.16, 11.5.17 пункта 11 Правил","Показатель выполнения Правил и норм технической эксплуатации жилищного фонда",0.06,"Кжил.фонд",{"$f":"E26*G26+E27*G27","v":1},"Расчет осуществляется автоматически по формуле:\nКжил.фонд=Кконтур*0,7+Кдезинф*0,3"]
["2.1",null,"Акт выполненных работ по подготовке к отопительному периоду теплового контура здания в соответствии с требованиями пункта 2.6.10 Правил и норм технической эксплуатации жилищного фонда\n(подпункт 11.5.16 пункта 11 Правил)","Показатель выполнения работ по подготовке к отопительному периоду теплового контура здания",0.7,"Кконтур",1,"Необходимо выбрать одно значение, в зависимости от следующих условий:\nналичие – 1;\nотсутствие – 0\n\n\n"]
["2.2",null,"Акты о проведении дезинфекции систем теплопотребления с открытой схемой теплоснабжения и горячего водоснабжения в соответствии с пунктом 5.2.10 Правил и норм технической эксплуатации жилищного фонда, санитарных правил и норм СанПиН 1.2.3685-21 «Гигиенические нормативы и требования к обеспечению безопасности и (или) безвредности для человека факторов среды обитания», утвержденных постановлением Главного государственного санитарного врача Российской Федерации от 28.01.2021 № 2  (далее – СанПиН 1.2.3685-21), и акты о результатах отбора проб воды из системы на соответствие требованиям СанПиН 1.2.3685-21, оформленные аккредитованной лабораторией (подпункт 11.5.17 пункта 11 Правил)\n","Показатель наличия актов о проведении дезинфекции систем теплопотребления с открытой схемой теплоснабжения и горячего водоснабжения актов о результатах отбора проб воды из системы",0.3,"Кдезинф",1,"Необходимо выбрать одно значение, в зависимости от следующих условий:\nналичие – 1;\nотсутствие – 0\n\n\n"]
["3","Обеспечить выполнение требования, предусмотренного пунктом 11 Правил пользования газом и предоставления услуг по газоснабжению в Российской Федерации, утвержденных постановлением Правительства Российской Федерации от 17 мая 2002 г. № 317, в части обеспечения безопасности при использовании и содержании внутридомового и внутриквартирного газового оборудования при предоставлении коммунальной услуги по газоснабжению \n(подпункт 11.3 пункта 11 Правил)\n","Для лиц, указанных в подпунктах 1.4, 1.5 пункта 1 Правил, - копия акта обследования дымовых и вентиляционных каналов многоквартирных домов перед отопительным периодом, копия действующего договора о техническом обслуживании и ремонте внутридомового газового оборудования в многоквартирном доме\n(пункт 11.5.18 пункта 18 Правил)\n\n","Показатель обеспечения безопасности при использовании и содержании внутридомового и внутриквартирного газового оборудования при предоставлении коммунальной услуги по газоснабжению",0.02,"Кгаз",{"$f":"E29*G29+E30*G30","v":1},"Расчет осуществляется автоматически по формуле:\nКгаз=Кдым.вент*0,5+Кдогов.тех.обсл*0,5\n\nЕсли газовое оборудование в многоквартирном доме не используется, Кгаз принимается равным 1.\n\n"]
["3.1",null,null,"Показатель наличия акта обследования дымовых и вентиляционных каналов многоквартирных домов перед отопительным периодом",0.5,"Кдым.вент",1,"Необходимо выбрать одно значение, в зависимости от следующих условий:\nналичие – 1;\nотсутствие – 0\n\n\n"]
["3.2",null,null,"Показатель наличия действующего договора о техническом обслуживании и ремонте внутридомового газового оборудования в многоквартирном доме",0.5,"Кдогов.тех.обсл",1,"Необходимо выбрать одно значение, в зависимости от следующих условий:\nналичие – 1;\nотсутствие – 0\n\n\n\n"]
["4","Обеспечить выполнение в установленные сроки предписаний, влияющих на надежность работы в отопительный период, выданных федеральным органом исполнительной власти государственного энергетического надзора, федерального государственного надзора в области промышленной безопасности, федеральными органами исполнительной власти в сфере обороны, обеспечения безопасности, государственной охраны, внешней разведки, мобилизационной подготовки и мобилизации, исполнения наказаний (их подразделениями) (в случаях, предусмотренных пунктом 2 части 1 статьи 41 Федерального закона о теплоснабжении и абзацем вторым пункта 2 статьи 5 Федерального закона от 21 июля 1997 г. № 116-ФЗ «О промышленной безопасности опасных производственных объектов» (далее – Федеральный закон о промышленной безопасности), об устранении нарушений требований пунктов 2.2.1, 2.3.14, 2.3.15, 2.8.1, 6.2.52, 6.2.62, 9.1.53, 9.2.9, 9.2.10, 9.2.12, 9.2.13, 9.2.20, 9.3.10, 9.3.11, 9.3.19, 9.3.24, 9.3.25, 10.1.9, 11.1, 11.2, 11.5 Правил технической эксплуатации тепловых энергоустановок, пунктов 394, 396 – 399, 403 Правил промышленной безопасности (подпункт 11.4 пункта 11 Правил)\n","Справка, представленная федеральным органом исполнительной власти государственного энергетического надзора, федерального государственного надзора в области промышленной безопасности, федеральными органами исполнительной власти в сфере обороны, обеспечения безопасности, государственной охраны, внешней разведки, мобилизационной подготовки и мобилизации, исполнения наказаний (их подразделениями) (в случаях, предусмотренных пунктом 2 части 1 статьи 41 Федерального закона о теплоснабжении и абзацем вторым пункта 2 статьи 5 Федерального закона о промышленной безопасности), в комиссию по оценке готовности к отопительному периоду\n(подпункт 11.4 пункта 11 Правил)\n\n","Показатель выполнения предписаний, влияющих на надежность работы в отопительный период",0.05,"Кпредп",1,"Необходимо выбрать одно значение, в зависимости от следующих условий:\nналичие – 1;\nотсутствие – 0\n\n"]
["5","Обеспечить выполнение плана подготовки к отопительному периоду, предусмотренного пунктом 3 Правил, и составленного с учетом пункта 11.1 Правил технической эксплуатации тепловых энергоустановок\n(подпункт 11.5 пункта 11 Правил)\n\n","План подготовки к отопительному периоду \n(пункт 3 Правил)\n\n","показатель наличия утврежденного плана подготовки к отопительному периоду",0.02,"Кплан",1,"Необходимо выбрать одно значение, в зависимости от следующих условий:\nналичие – 1;\nотсутствие – 0\n\n\n\n"]